{"text_format":"1","workbook":"xlsx","n_sheets":6,"sheets":["Note informative","Note esplicative","Dati di ingresso","Costo del calore","Risultati","Commenti"],"not_rendered":{"charts":2,"images":6,"macros":1,"external_links":0,"defined_names":287,"comments":3,"pivot_tables":0},"unopened":[],"bounds":{"document_bytes":16777216,"sheet_cells":100000,"rows_first":2000,"rows_last":500,"rows_between":2000,"halvings":0,"cell_chars":16384,"cell_head_chars":4096},"cells_cut":0,"cells_raw":0,"read":"whole","date_system":"1900"}

{"sheet":"Note informative","index":0,"n_rows":12,"n_cols":1,"rows_kept":12,"cut":false,"hidden":false,"merged":[]}
[]
[]
[]
["Questo documento è stato tradotto sulla base dello strumento di calcolo della redditività \"Wirtschaflichkeitsrechnung \" sviluppato nell'ambito del programma austriaco \"klimaaktiv QM Heizwerke\"."]
["La traduzione è stata realizzata nell'ambito del progetto Interreg Central Europe \"ENTRAIN - ENhancing renewable heaT planning for improving the aiR quAlity of commuNities\"."]
[]
[]
["Si prega di contattare Sabrina Metz all'indirizzo s.metz@aee.at per segnalazioni riguardanti eventuali bug nello strumento o qualsiasi suggerimento"]
[]
["\"klimaaktiv QM Heizwerke\" è un programma di gestione della qualità finalizzato a migliorare la qualità tecnica e l'efficienza degli impianti di riscaldamento e delle reti di teleriscaldamento a biomassa installati in Austria, attraverso il controllo di qualità durante la fase di progettazione, costruzione e gestione. \nPer maggiori dettagli e informazioni sul programma consultare il sito www.klimaaktiv.at/qmheizwerke"]
[]
["Il programma \"klimaaktiv QM Heizwerke\" è sostenuto dal Ministero federale austriaco per la protezione del clima, l'ambiente, l'energia, la mobilità, l'innovazione e la tecnologia (BMK)."]

{"sheet":"Note esplicative","index":1,"n_rows":140,"n_cols":2,"rows_kept":140,"cut":false,"hidden":false,"merged":[]}
[null,"Note esplicative"]
[null,"Informazioni di base di questo strumento:\nDisclaimer\nQuesto strumento Excel seppur redatto con massima cura e diligenza, potrebbe non essere privo di errori, imprecisioni ed omissioni, di cui la scrivente non potrà essere mai e in nessun caso ritenuta responsabile.\nSi puntualizza inoltre che le semplificazioni possono comportare alcuni imprecisioni dovuti al tipo di calcolo, ad esempio non si specifica se un pagamento viene effettuato all'inizio o alla fine di un determinato anno, poiché un anno è considerato come un unico periodo.\n! Attenzione: Anche se lo strumento visualizza dei messaggi di avvertimento relativi ai diversi limiti di input, non si può escludere che valori di input errati possano portare a risultati finali inesatti. La corretta valutazione delle conseguenze di determinate ipotesi è responsabilità dell'utilizzatore dello strumento inoltre non si assume alcun obbligo né si accetta alcuna responsabilità che possa derivare da eventuali errori, imprecisioni o omissioni.\nProcesso di calcolo: \nSulla base dell'effettiva richiesta di calore annua, vengono calcolati l'efficienza annua della rete e degli impianti di riscaldamento, il consumo di combustibile e i relativi costi annui \nFormule:\nnello strumento sono visibili le formule e i calcoli. Si ricorda che apportare modifiche allo strumento può causare errori e quindi generare risultati non corretti.\nAnalisi di sensibilità / analisi What-if:\nVariando i parametri di input e memorizzando i singoli risultati dell'analisi della redditività, è possibile valutare l'incidenza dei singoli parametri sulla sostenibilità finanziaria dell'impianto"]
[null,"\nNel calcolo dei flussi finanziari annuali si considerano sull'anno,  gli andamenti durante l'arco dell'anno non vengono considerati. L'investimento VAN inizia in anticipo di un periodo sulla data del flusso di cassa immesso come valore1 e termina con l'ultimo flusso di cassa dell'elenco. Il calcolo VAN si basa sui flussi di cassa futuri."]
[100,"Tutti gli importi in euro devono essere indicati senza l'imposta sul valore aggiunto (IVA). I campi di input sono evidenziati in giallo chiaro."]
[101,"Avvertenze: Un breve testo esplicativo appare nel campo Avvertenze se nel foglio di input vengono introdotti valori non plausibili (ad es. efficienza = zero o simili)."]
[102,"Inserire il prezzo del calore e il consumo di calore. Queste componenti di reddito assieme ai contributi e alle spese di allacciamento incidono sulla determinazione dei risultati economico-finanziari di un impianto di riscaldamento a biomassa."]
[103,"Vendita totale di calore in MWh/a prevista a fine progetto, corrisponde alla vendita del 100% del calore disponibile [107]. Il consumo di combustibile è calcolato in base all'efficienza annua della rete di teleriscaldamento e all'efficienza annua della caldaia."]
[104,"Consumo interno di calore. Ossia quantità di calore utilizzata e non venduta, ad es. calore per la sala di controllo del riscaldamento, rampa di sbrinamento, ecc."]
[105,"Efficienza annuale della/e caldaia/e a biomassa. Il rapporto tra la quantità di calore generato e la quantità di combustibile utilizzato. NON corrisponde all'efficienza istantanea ottenibile della caldaia! Ipotesi troppo ottimistiche possono portare a considerare un consumo di combustibile significativamente inferiore e quindi a ipotizzare costi del combustibile troppo bassi."]
[106,"Efficienza annua della rete di teleriscaldamento (40 ... 98%). Il rapporto tra il calore venduto (distribuito) dalla rete e il calore immesso nella rete. "]
[107,"Andamento della vendita di calore espresso come % della vendita totale di calore annua definita in [103]. Queste informazioni possono essere utilizzate per considerare gli ampliamenti della rete che si svolgeranno in più fasi nel corso dei primi 3 anni. Al terzo anno, una percentuale del 100% deve essere raggiunta!"]
[108,"Aumento annuo della vendita di calore della rete di teleriscaldamento dopo il 3° anno. Grazie ad un ampliamento/maggiore densità importante della rete (collegamento di nuovi utenti/clienti), il consumo di calore può superare il 100 % del valore originariamente considerato per il terzo anno in questo caso qualsiasi investimento necessario dovrà essere inserito nella colonna \"Esborsi aggiuntivi\" nel foglio \"Risultati\" in corrispondenza dell'anno in cui viene effettuato."]
[109,"Prezzo netto di vendita del calore. Può essere calcolato nel foglio \"Costo del calore\", il prezzo si compone di una quota fissa, una relativa alla potenza (€/kW) disponibile e l'altra per il servizio di misure e gestione contatore (€/a) più una quota variabile (energia) che dipende dalla quantità di energia (€/kWh) fornita, nel foglio di calcolo i valori computati sono su base annuale."]
[110,"Adeguamento del prezzo medio annuo di vendita del calore in percentuale: se collegato a un indice dei prezzi al consumo standard, sono attesi tassi compresi tra l'1% e il 3%. (Questo non dovrebbe essere superiore ai valori di adeguamento per i costi dell'elettricità, del combustibile o del personale)."]
[111,"Spese di connessione, se la sottostazione di trasferimento del calore dalle tubazioni del sistema di teleriscaldamento all'utenza connessa è di proprietà del gestore, l'utente dovrà pagare un contributo/spesa una tantum a copertura dei costi di connessione (tubazioni, scambiatore, interventi impiantistici ecc). "]
[112,"Altri ricavi (ad esempio dalla cogenerazione )"]
[113,"Adeguamento medio annuo dei prezzi (ad es. indice dei prezzi al consumo, dei vettori energetici ecc)"]
[114,"Anno di riferimento per gli investimenti - utilizzato come anno n.0 per la valutazione economica-finanziaria"]
[120,"Prezzo del combustibile e costi operativi, voci di spesa significative per un impianto di riscaldamento a biomassa."]
[121,"Prezzo della biomassa in € per MWh di contenuto energetico."]
[122,"Percentuale di vendita di calore prodotto con la biomassa. 100% indica che la produzione è coperta interamente da biomassa, 90% indica che il 10% del fabbisogno annuo di calore è prodotto con combustibili fossili."]
[123,"Adeguamento del prezzo medio annuo del calore da biomassa ad un indice dei prezzi di vettori energetici fossili."]
[124,"Prezzo dei combustibili fossili utlizzati (es. gasolio o gas naturale). Se viene utilizzato un combustibile non fossile per coprire i picchi, deve esere indicato qui "]
[125,"Adeguamento del prezzo medio annuo del combustibile fossile in percentuale (analisi trimestrale del sistema energetico italiano dell'ENEA)"]
[126,"Consumo specifico di energia elettrica in kWh elettrici per MWh di calore venduto. Questo valore dovrebbe includere tutti i principali componenti elettrici dell'impianto di riscaldamento (caldaie, pompe, pompe di rete, ventilatore, precipitatore elettrico, ...)."]
[127,"Prezzo dell'elettricità in € per kWhe della società di fornitura di energia elettrica"]
[128,"Adeguamento del prezzo medio annuo dell'elettricità (percentuale/anno)"]
[130,"Costi del personale per la gestione della centrale termica e della rete (euro/anno)"]
[131,"Adeguamento del costo medio annuo del personale"]
[132,"Costi annui per consulenza fiscale e tenuta contabilità"]
[133,"Adeguamento del costo medio annuo per la consulenza fiscale e tenuta contabilità"]
[134,"Costi di manutenzione annui"]
[135,"Adeguamento del costo medio annuo per la manutenzione"]
[136,"Costi annui per canoni di  locazione/leasing"]
[137,"Adeguamento costi annui per canoni di  locazione/leasing"]
[138,"Altri costi annui (assicurazione, homepage, telefono, imposte, ... ecc.)"]
[139,"Adeguamento del prezzo medio annuo per \"altri costi\"."]
[140,"Limite superiore dell'aumento annuo della vendita di calore. Questo valore viene utilizzato per limitare la crescita della vendita di calore utilizzando come riferimento l'anno n.3. L'aumento massimo deve essere limitato considerando i vincoli locali, in modo che la vendita di calore dopo il quarto anno non cresca in modo illimitato. Ad esempio, se la vendita di calore massima possibile nella zona (supponendo che tutti gli edifici vengano collegati alla rete) è pari al 110% della vendita di calore definita all'anno 3, questo fattore deve essere impostato al 10% (o inferiore)."]
[150,"Esborso per l'impianto di riscaldamento (investimento)"]
[151,"Considerate qui solo i gli investimenti ammissibili a contributi pubblici (contributo in C/C, incentivi ecc)"]
[152,"Esborso finanziario relativo all'investimento nella rete di teleriscaldamento."]
[153,"Spesa per la costruzione del locale caldaia e per lo stoccaggio del cippato"]
[154,"Costi per la progettazione dell'impianto e della rete di teleriscaldamento e, se applicabile, per lo sviluppo di un programma di gestione della qualità (ad es. qm heizwerke)."]
[155,"Spese non ammissibili per contributi e incentivi (veicoli, ecc.) - secondo gli schemi di finanziamento in essere"]
[156,"Esborso totale dell'investimento, calcolato in base alle spese ammissibili e non ammissibili. L'importo che il cliente (proprietario dell'impianto) deve inizialmente spendere per realizzare l'impianto e la rete di teleriscaldamento."]
[160,"Fondi propri disponibili per il progetto, quota di finanziamento di terzi , parte coperta dal contributo pubblico e % di copertura con contributo pubblico dell'investimento totale. Si raccomanda di raggiungere una quota minima di capitale proprio del 10-30%, se possibile. Quanto più alta è la quota di capitale proprio, tanto minore sarà il ricorso a capitali di terzi (prestito) e di conseguenza minori saranno il servizio del debito (commissioni e interessi passivi) e le uscite finanziarie relative al rimborso delle quote capitale sul prestito. "]
[161,"Mezzi propri nella forma di capitale sociale sottoscritto da parte del proprietario e/o dei soci."]
[162,"Durata del mutuo, si ipotizza un tasso costante per l'intera durata del prestito. Si dovrebbe concordare con la banca un durata che fosse la più lunga possibile (preferibilmente 20, 25 anni) e prevedere contrattualmente la possibilità di estinguere il mutuo in anticipo senza oneri aggiunti. In questo modo le rate da rimborsare restano basse e in caso di maggiori entrate si può estinguere anticipatamente il mutuo senza oneri aggiuntivi."]
[163,"Tasso d'interesse medio lordo per l'intera durata del prestito (ad es. tasso d'interesse di riferimento (Euribor) + maggiorazione + costi aggiuntivi)."]
[164," % di copertura con contributo (tasso di sussidio ipotizzato) delle spese ammissibili. Le spese ammissibili (investimento) moltiplicate per la % di copertura con contributo danno la somma totale del contributo concesso."]
[165,"Anno in cui viene erogato il contributo (sussidio). Scegliere tenendo conto delle modalità operative degli schemi di finanziamento. Le pratiche per il riconoscimento del contributo vanno fatte il più velocemente possibile e dal momento che in attesa dell'erogazione del contributo la copertura finanziaria verrà fornita da un prestito di conseguenza più passa il tempo, più interessi si pagano."]
[166,"Spuntare la casella di controllo se il contributo (sussidio) che viene erogato annualmente (cioè un contributo erogato su più anni o incentivi sulla produzione erogati su più anni). Cliccare per disattivare/attivare. Se attivata (segno di spunta visibile), il sussidio viene incluso nei calcoli. Il sussidio viene inserito nella colonna \"Entrate supplementari / sussidio supplementare\". Metodo di calcolo: importo base (anno1) + importo anni successivi + adeguamento annuale incentivo. Con queste informazioni dovrebbe essere possibile mappare le varie modalità di erogazione di contributi e incentivi."]
[167,"Contributo : Importo al 1° anno."]
[168,"Contributi/incentivi:  Importo anni successivi"]
[169,"Contributi/incentivi:  Adeguamento annuale incentivo"]
[170,"Il VAN (Valore Attuale Netto) rappresenta, in termini monetari, il valore creato o disperso dall’investimento effettuato nell’arco del periodo del contratto; è calcolato come la differenza tra il valore attuale dei flussi di cassa netti annuali (entrate-uscite monetarie nell'anno) meno l’impiego iniziale del capitale proprio."]
[171,"Tasso di interesse utilizzato per calcolare il VAN Valore Attuale Netto. Nel caso di ricorso a capitali di terzi (finanziamento con debito) che sia almeno vicino al tasso d'interesse medio più alto richiesto dal mercato per finanziare operazioni simili"]
[180,"Valori calcolati: valori numerici che possono essere calcolati a partire dagli input precedenti e servono per controllare gli input e visualizzare il calcolo delle quantità di energia. "]
[181,"Quota percentuale della vendita di calore generata con combustibili fossili"]
[182,"La quantità di calore prodotto è calcolato considerando la quantità di calore venduto, la dispersione della rete e dall'autoconsumo dell'impianto"]
[183,"La quantità di combustibile utilizzato per la produzione di calore viene calcolata sulla base del calore da fornire e il rendimento medio della caldaia."]
[184,"Il combustibile da biomassa utilizzato corrisponde alla quantità di calore generato con la biomassa. Il rimanente è generato da fonti fossili o da altre fonti di energia. "]
[185,"Il combustibile fossile utilizzato corrisponde alla quantità di calore generato con il combustibile fossile. La parte rimanente è generata con la biomassa. "]
[186,"Consumo di energia elettrica della centrale termica nell'anno n. 1 - Calcolato in base al consumo specifico di energia elettrica per MWh di calore venduto."]
[190,"Totale investimento: spese per l'impianto di riscaldamento, la rete di riscaldamento e gli investimenti aggiuntivi necessari."]
[191,"Spese ammissibili per il contributo. Importo totale delle spese di investimento ammissibiliper il contributo/i. Sono calcolati utilizzando le posizioni 151 - 155.  "]
[192,"Il contributo (sussidio) è calcolato in base alle spese ammissibili e alla % di copertura con contributo (tasso di sussidio ipotizzato)"]
[193,"Valore massimo del prestito effettuato dalla banca (prestito senior + prestito  ponte) prima dell'erogazione del contributo per cofinanziare l'investimento negli anni 1-5, valore cella n.165. "]
[194,"Prestito senior, mutuo principale di lungo periodo (non comprende il prestito ponte in attesa di incassare il contributo)"]
[195,"Interessi su prestiti nel primo anno."]
[196,"Rata annuale mutuo"]
[197,"Rata annuale prestito ponte fino all'erogazione del sussidio, la rata si riferisce al \"prestito ponte\" che si estingue con l'erogazione del contributo. Per tutta la durata del prestitto ponte si sosteranno extra costi per il servizio del debito."]
[null,"Foglio aggiuntivo Prezzo del calore: \nQuesto foglio viene utilizzato per calcolare il prezzo medio di vendita del calore secondo il tipo di cliente (privato, commerciale, grande consumatore)."]
[401,"Casella di controllo. Cliccare sulla casella per attivarla/disattivarla; se attivata (segno di spunta visibile), si ottiene il prezzo dopo aver inserito una serie di valori (tipo cliente, consumo, potenza ecc) che vengono elaborti nel foglio di calcolo \"Costo del calore\""]
[402,"Casella di controllo. Cliccare sulla casella per attivarla / disattivarla; se attivata (segno di spunta visibile), il prezzo di vendita del calore tiene conto dei diversi livelli di consumo del cliente applicando la scontistica secondo i livelli e le % impostate nel foglio di calcolo"]
[403,"Prezzo di vendita, se non viene spuntata la casella 401, allora il valore viene preso direttamente dalla 414 ( prezzo medio unico del calore predefinito). Se il calcolo invece tiene conto del tipo di cliente, consumo, potenza ecc allora si spunta la cella 401 e se si vuole anche applicare la scontistica per i diversi livelli di consumo si deve spuntare anche la cella 402."]
[404,"Prezzo profilato per tipologia di cliente, tiene conto del tipo di cliente, consumo, potenza, servizio misure e getione contatore che vengono inserite ed elborate nel foglio di calcolo \"Costo del calore\""]
[405,"Tipo di cliente 1 - corrisponde a clienti privati o piccoli clienti con un consumo di calore molto basso e con un fabbisogno di potenza installata molto basso, per esempio case unifamiliari, appartamenti singoli, piccoli edifici per uffici, ecc."]
[406,"Coefficiente quota potenza, espressa in €/kW, moltiplicato per la potenza installata kW determina la  somma che il cliente deve corrispondere per il fatto che allo stesso è garantito il trasferimento di una certa potenza termica definita nel contratto di fornitura."]
[407,"Servizio misure e gest. Contatore, prezzo per la gestione contatore e servizio misure espresso in € all'anno"]
[408,"Prezzo energia fornita, prezzo per l'energia fornita espresso in € per kWh di calore venduto"]
[409,"Potenza media installata per singolo tipo di utenza/cliente (1-3). Questa deve essere determinata correttamente come media di tutti i clienti appartenenti alla medesima tipologia, in modo che il calcolo del prezzo del calore risultante fornisca un risultato corretto."]
[410,"Consumo medio di calore per tipo di consumatore (1-3). Questo deve essere determinato correttamente come media su tutti i clienti appartenenti alla medesima tipologia, in modo che il calcolo del prezzo del calore fornisca un risultato corretto."]
[411,"Prezzo del calore per tipo di cliente/utenza 1-3."]
[412,"Tipo di cliente 2 - corrisponde a clienti con un consumi e potenze installate medie, ad es. imprese commerciali, grandi edifici per uffici, ecc."]
[413,"Tipo di cliente 3 - corrisponde a clienti con un consumi e potenze installate alte, ad es.  impianti industriali, grandi edifici pubblici, ospedali …"]
[414,"Prezzo medio unico, prezzo medio ponderato con le quantità delle tre tipologie di cliente previste."]
[415,"Sconti sul prezzo, vanno definiti e inseriti gli scaglioni con i relativi sconti (nella forma di coefficienti di riduzione del prezzo). Si noti che lo sconto è concesso ai clienti-cluster, cioè ai tipi di clienti da 1 a 3, e non ai singoli clienti "]
[416,"Scaglione 1 -  Inserire il valore relativo all'estremo superiore  \"fino a kWh/a\" e il relativo coefficiente di adeguamento del prezzo in percentuale che in questo caso pari al 100% visto che sul primo scaglione non c'è sconto. Il prezzo per consumi che rientrano nel primo scaglione sono quindi pieni. "]
[417,"Scaglione 2 - per i consumi che rientrano in questo scaglione inserire il coefficiente di adeguamento prezzo % pari al prezzo pieno 100% MENO lo sconto % previsto per questo scaglione."]
[418,"Scaglione 3 - per i consumi che rientrano in questo scaglione inserire il coefficiente di adeguamento prezzo % pari al prezzo pieno 100% MENO lo sconto % previsto per questo scaglione."]
[419,"Scaglione 4 - per i consumi che rientrano in questo scaglione inserire il coefficiente di adeguamento prezzo % pari al prezzo pieno 100% MENO lo sconto % previsto per questo scaglione."]
[420,"Scaglione 5 - per i consumi che rientrano in questo scaglione inserire il coefficiente di adeguamento prezzo % pari al prezzo pieno 100% MENO lo sconto % previsto per questo scaglione."]
[500,"Foglio \"Commenti\" permette di commentare/spiegare i risultati dell'attuale valutazione sulla redditività economica e i dati inseriti in modo che sia possibile aggiungere ulteriori informazioni ai valori di input e ai risultati calcolati."]
[900,"Scheda \"Risultati\": sintesi dell'analisi finanziaria semplificata del progetto che si sviluppa su un periodo di 25 anni. Si ipotizza che a regime i costi e i ricavi abbiano una manisfestazione finanziaria nell'anno considerato; inoltre gli importi riportati sono al netto d'iva.  I movimenti finanziari collegati al CCN (Capitale Circolante Netto) e i flussi collegati alle dinamiche fiscali non vengono riportati."]
[901,"Sintesi dei costi operativi"]
[905,"Ricavi: Tutti i ricavi della centrale termica sono relativi all'anno di esercizio 1 e al 100% della potenza allacciata. L'indice di adeguamento dei prezzi indicato è un indice misto ponderato di tutti i ricavi."]
[910,"I valori attuali netti sono calcolati per i periodi 1-10, 1-15, 1-20, 1-25. In ogni caso, il VAN non dovrebbe mai essere minore di zero, quando è uguale a zero vuol dire che l'operazione rende esattamente quanto il tasso di attualizzazione usato per il calcolo del VAN. Progetti con somme di investimento più ingenti non sono direttamente confrontabili con progetti con somme di investimento più contenute, in questo caso quindi possiamo confrontare i VAN relativi a periodi diversi perchè sono riferiti alla stesso progetto con il medesimo esborso iniziale."]
[920,"Per quanto riguarda il calcolo del Valore Attuale Netto (VAN), le \"entrate finanziarie\" devono essere confrontate con le \"uscite finanziarie\" su base annuale."]
[930,"Il progetto si sviluppa su 25 anni max"]
[931,"Vendita di calore assumendo  come valore di riferimento un fattore del 100% del calore disponibile  (vedi cella 103).   "]
[932,"Uscite (pagamenti) per combustibile a biomassa."]
[933,"Uscite (pagamenti) per combustibili fossili."]
[934,"Uscite (pagamenti) per spese di personale, contabilità e consulenza."]
[935,"Uscite (pagamenti) per l'energia elettrica."]
[936,"Uscite (pagamenti) per spese di manutenzione"]
[937,"Esborsi aggiuntivi. Colonna per contenuto libero. Qui si possono prendere in considerazione altre spese, ad es. i costi di reinvestimento previsti, gli investimenti supplementari per gli ampliamenti successivi e gli investimenti dovuti a nuove derivazioni/allungamenti della rete a partire dall'anno n. 4 in poi."]
[938,"Pagamenti per l'affitto di terreni e altre spese (ad es. assicurazione, telefono, spese amministrative ...)"]
[939,"Rata mutuo comprensiva di q.ta capitale e interessi, nel caso di contributi che riducono il debito residuo (rimborso debito), la rata del mututo viene ricalcolata"]
[940,"Totale degli esborsi annuali, somma delle colonne 2 - 9"]
[941,"Entrate derivanti dalla vendita di calore."]
[942,"Entrate, contributi pubblici una tantum a copertura dei costi allacciamento"]
[943,"Incentivi annuali, visto che nel folgio \"Dati di ingresso\" sono riportati i dati relativi agli incentivi, le caselle sono linkate al foglio succitato. E' possibile anche inserire liberamente gli incentivi a mano oppure aggiungere eventuali altri incentivi sommandoli alla formula presente nella cella delle specifiche entrate ulteriori per l'anno considerato"]
[944,"Altri ricavi da altre fonti quali vendite di carburanti, ecc."]
[945,"Totale entrate, somma delle colonne 11 - 1 4."]
[946,"Flussi finanziari netti annuali (tot. entrate - tot. uscite ) da usare per il calcolo del VAN"]
[947,"Flussi di cassa cumulativi, il primo anno in cui il flusso cumulativo è ≥0 corrisponde praticamente all'anno di rientro semplice (payback sull'investimento iniziale)"]
[948,"Il debito totale ( mutuo+ prestito ponte eventuale) si estinguerà più velocemente della durata complessiva dello stesso nel caso di contributi per l'investimento, perché una volta incassato il contributo, si abbassa il debito residuo per la parte incassata (che spesso viene girata direttamente alla banca per estinguere il prestito ponte)"]
[949,"Contributo, importo del finanziamento pubblico erogato nell'anno esimo, che va a stornare li debito residuo (abbassanadolo) in seguito al quale si ridetermina anche la rata da pagare alla banca"]
[950,"Sovvenzione (informativa) - Importo del finanziamento pubblico e quando sarà erogato (anni 1-5)"]
[980,"Grafici delle principali grandezze finanziarie su 25 anni"]
[981,"Diagramma del Valore Attuale Netto (VAN) per i periodi 1-10, 1-15, 1-20 e 1-25."]
[]
[null,"Unità di misura"]
[null,"MWh = megawattora termico"]
[null,"kWh = kilowattora termico"]
[null,"a = anno"]
[null,"€ = euro "]
[null,"% = percentuale"]
[null,"MWhel = megawattora elettrico"]
[null,"kWhel = kilowattora elettrico"]
[]
[null,"Abbreviazioni"]
[null,"cur. = corrente"]
[null,"DH = teleriscaldamento"]
[null,"DHN = rete di teleriscaldamento"]
[null,"VAN = Valore Attuale Netto"]
[null,"PY = anno precedente"]
[null,"sur.= eccendeza"]
[null,"VAT = IVA"]

{"sheet":"Dati di ingresso","index":2,"n_rows":105,"n_cols":36,"rows_kept":105,"cut":false,"hidden":false,"merged":[[53,13,53,15],[40,13,40,15],[37,13,37,15],[42,13,42,15],[60,13,60,15],[52,13,52,15],[55,13,55,15],[45,13,45,15],[47,13,47,15],[46,13,46,15],[48,13,48,15],[27,13,27,15],[28,13,28,15],[30,13,30,15],[50,13,50,15],[49,13,49,15],[41,13,41,15],[38,13,38,15],[34,13,34,15],[35,13,35,15],[36,13,36,15],[3,5,3,22],[11,13,11,15],[12,13,12,15],[22,18,22,19],[25,13,25,15],[23,13,23,15],[22,8,22,12],[7,1,7,3],[18,13,18,15],[22,13,22,15],[7,4,7,22],[13,13,13,15],[16,13,16,15],[14,13,14,15],[17,13,17,15],[19,13,19,15],[20,13,20,15],[80,13,80,15],[81,13,81,15],[89,13,89,15],[56,13,56,15],[65,13,65,15],[62,13,62,15],[63,13,63,15],[84,13,84,15],[78,13,78,15],[79,13,79,15],[70,13,70,15],[61,13,61,15],[75,13,75,15],[71,13,71,15],[69,13,69,15],[64,13,64,15],[90,13,90,15],[104,13,104,15],[103,13,103,15],[74,13,74,15],[102,13,102,15],[76,13,76,15],[94,13,94,15],[97,13,97,15],[99,13,99,15],[101,13,101,15],[98,13,98,15],[100,13,100,15],[93,13,93,15],[91,13,91,15],[96,13,96,15],[92,13,92,15]]}
[null,"Calcolo della redditività economica - Dati di input"]
[]
[]
[null,"Titolo del progetto",null,null,null,"Esempio di progetto"]
[]
[100,"(IVA esclusa)",null,null,null,"cella di input"]
[]
[101,"Avvertenze",null,null,{"$f":"IF(AD8>10,\"Mehr als 10 Warnungen oder Fehler!\",IF(AD8>0,AE8,\"\"))","v":""},null,null,null,null,null,null,null,null,null,null,null,null,null,null,null,null,null,null,null,null,null,null,null,null,{"$f":"SUM(AB11:AD131)","v":0},{"$f":"AE11&AE27&AE34&AE45&AE60&AE69&AE74","v":""}]
[]
[102,"Quantità di calore, prezzo del calore e spese di allacciamento",null,null,null,null,null,null,null,null,null,null,null,null,null,null,null,null,null,null,null,null,null,null,null,"Min","Max","Undercut","Surpass","S. Error","Attenzione","SumSp","MinTesto","MaxTesto","AltroTesto"]
[null,null,null,null,null,null,null,null,null,null,null,null,null,null,null,null,null,null,null,null,null,null,null,null,null,null,null,null,null,null,{"$f":"AE12&AE13&AE14&AE17&AE18&AE19&AE23&AE26&AE15&AE20&AE24&AE21","v":""},"x"]
[103,null,null,null,null,null,null,null,null,null,null,null,"Vendita annuale di calore",7750,null,null,"MWh/a",null,null,null,null,null,null,null,null,10,9999999999,{"$f":"IF($N12<Z12,1,0)","v":0},{"$f":"IF($N12>AA12,1,0)","v":0},0,{"$f":"IF(AB12=1,AG12,IF(AC12=1,AH12,IF(AD12=1,AI12,\"\")))","v":""},null,"La quantità di calore venduto è troppo piccola! ","La quantità di calore venduto è troppo grande!"]
[104,null,null,null,null,null,null,null,null,null,null,null,"Consumo di calore interno",0,null,null,"MWh/a",null,null,null,null,null,null,null,null,0,9999999999,{"$f":"IF($N13<Z13,1,0)","v":0},{"$f":"IF($N13>AA13,1,0)","v":0},{"$f":"IF(InternalHeatCons>HeatQuantitySold,1,0)","v":0},{"$f":"IF(AB13=1,AG13,IF(AC13=1,AH13,IF(AD13=1,AI13,\"\")))","v":""},null,"Il consumo di calore interno è negativo!","Il consumo di calore interno è troppo alto!","Il consumo di calore interno è maggiore della quantità di calore venduta!"]
[105,null,null,null,null,null,null,null,null,null,null,null,"Efficienza annua della caldaia o delle caldaie a biomassa",85,null,null,"%",null,null,null,null," ",null,null,null,40,98,{"$f":"IF($N14<Z14,1,0)","v":0},{"$f":"IF($N14>AA14,1,0)","v":0},{"$f":"IF(InternalHeatCons>HeatQuantitySold,1,0)","v":0},{"$f":"IF(AB14>0,AG14,\"\")&IF(AC14>0,AH14,\"\")&IF(AD14>0,AI14,\"\")","v":""},null,"Il tasso di utilizzo annuale della caldaia(e) a biomassa è inferiore al 40%.","Il tasso di utilizzo annuale della caldaia a biomassa è superiore al 98 %!"]
[106,null,null,null,null,null,null,null,null,null,null,null,"Efficienza annua della rete di teleriscaldamento (TLR)",70,null,null,"%",null,null,null,null,null,null,null,null,40,99,{"$f":"IF($N15<Z15,1,0)","v":0},{"$f":"IF($N15>AA15,1,0)","v":0},{"$f":"IF(N15=\"\",1,0)","v":0},{"$f":"IF(AB15>0,AG15,\"\")&IF(AC15>0,AH15,\"\")&IF(AD15>0,AI15,\"\")","v":""},null,"Il tasso di utilizzo annuale della rete di teleriscaldamento è troppo basso!","Il tasso di utilizzo annuale della rete di teleriscaldamento è troppo alto!","Il tasso di utilizzo annuale della rete non è specificato!! "]
[]
[107,null,null,null,null,null,null,null,null,null,null,null,"Andamento della vendita di calore - anno 1",60,null,null,"% della vendita totale di calore annuale",null,null,null,null,null,null,null,null,0,100,{"$f":"IF($N17<Z17,1,0)","v":0},{"$f":"IF($N17>AA17,1,0)","v":0},{"$f":"IF(N17=\"\",1,0)","v":0},{"$f":"IF(AB17>0,AG17,\"\")&IF(AC17>0,AH17,\"\")&IF(AD17>0,AI17,\"\")","v":""},null,"La vendita di calore del primo anno è troppo bassa"]
[null,null,null,null,null,null,null,null,null,null,null,null,"Andamento della vendita di calore - anno 2",80,null,null,"% della vendita totale di calore annuale",null,null,null,null,null,null,null,null,1,100,{"$f":"IF($N18<Z18,1,0)","v":0},{"$f":"IF($N18>AA18,1,0)","v":0},{"$f":"IF(ConsFactor_y2<ConsFactor_y1,1,0)","v":0},{"$f":"IF(AB18>0,AG18,\"\")&IF(AC18>0,AH18,\"\")&IF(AD18>0,AI18,\"\")","v":""},null,"La vendita di calore del secondo anno è troppo bassa","Il fattore di consumo di calore del secondo anno è troppo alto","Il fattore di consumo di calore del secondo anno è inferiore a quello del primo anno"]
[null,null,null,null,null,null,null,null,null,null,null,null,"Andamento della vendita di calore - anno 3",100,null,null,"% della vendita totale di calore annuale",null,null,null,null,null,null,null,null,2,100,{"$f":"IF($N19<Z19,1,0)","v":0},{"$f":"IF($N19>AA19,1,0)","v":0},{"$f":"IF(ConsFactor_y3<ConsFactor_y2,1,0)","v":0},{"$f":"IF(AB19>0,AG19,\"\")&IF(AC19>0,AH19,\"\")&IF(AD19>0,AI19,\"\")","v":""},null,"La vendita di calore del terzo anno è troppo bassa","L'andamento della vendita di calore del terzo anno è troppo alto","Il fattore di consumo di calore del terzo anno è inferiore a quello del secondo anno"]
[108,null,null,null,null,null,null,null,null,null,null,null,"Aumento annuo della vendita di calore a partire dal 4° anno",0,null,null,"%",null,null,null,null,null,null,null,null,0,5,{"$f":"IF($N20<Z20,1,0)","v":0},{"$f":"IF($N20>AA20,1,0)","v":0},{"$f":"IF(ConsFactor_y4onwards=\"\",1,0)","v":0},{"$f":"IF(AB20>0,AG20,\"\")&IF(AC20>0,AH20,\"\")&IF(AD20>0,AI20,\"\")","v":""},null,"L'aumento della vendita di calore del quarto anno e successivi è negativo!","L'aumento annuale della vendita di calore dal quarto anno in poi è troppo alto!","L'aumento del fattore di consumo di calore dal quarto anno in poi non è definito"]
[140,null,null,null,null,null,null,null,null,null,null,null,"Limite superiore dell'aumento annuo della vendita di calore ",16,null,null,"%",null,null,null,null,null,null,null,null,0,100,{"$f":"IF($N21<Z21,1,0)","v":0},{"$f":"IF($N21>AA21,1,0)","v":0},{"$f":"IF(ConsFactorMax=\"\",1,0)","v":0},{"$f":"IF(AB21>0,AG21,\"\")&IF(AC21>0,AH21,\"\")&IF(AD21>0,AI21,\"\")","v":""},null,"Il limite superiore dell'aumento annuo della vendita di calore (vedi cella 140) è negativo ","Il limite superiore del fattore di consumo di calore (vedi cella 140) è troppo alto","Il limite superiore del fattore di consmuo di calore (vedi cella 140) non è definito"]
[]
[109,null,null,null,null,null,null,null,"Prezzo netto di vendita del calore",null,null,null,null,65,null,null,"€/MWh",null,{"$f":"DeterminedHeatPrice","v":57.210454545454553},null,"€/MWh",null,null,null,null,0,1000,{"$f":"IF($N23<Z23,1,0)","v":0},{"$f":"IF($N23>AA23,1,0)","v":0},{"$f":"IF(HeatSalesPrice<0,1,0)","v":0},{"$f":"IF(AB23>0,AG23,\"\")&IF(AC23>0,AH23,\"\")&IF(AD23>0,AI23,\"\")","v":""},null,"Il prezzo netto di vendita di calore è molto basso","Il prezzo netto di vendita del calore è troppo alto","Il prezzo netto di vendita del calore è negativo!","Il prezzo netto di vendita del calore è negativo!"]
[110,null,null,null,null,null,null,null,null,null,null,null,"Adeguamento annuale del prezzo di vendita del calore",2.5,null,0.5,"%",null,null,null,null,null,null,null,null,0,10,{"$f":"IF($N24<Z24,1,0)","v":0},{"$f":"IF($N24>AA24,1,0)","v":0},0,{"$f":"IF(AB24>0,AG24,\"\")&IF(AC24>0,AH24,\"\")&IF(AD24>0,AI24,\"\")","v":""},null,"Si presume che l'adeguamento annuale del prezzo di vendita del calore sia inferiore al 10%  ","L'adeguamento annuale del prezzo di vendita del calore è troppo elevato"]
[]
[111,null,null,null,null,null,null,null,null,null,null,null,"(Contributo una tantum per la connessione alla rete di teleriscaldamento) Anno 1-3",350000,null,null,"€",null,null,null,null,null,null,null,null,0,{"$f":"TotalInvestment","v":2355000},{"$f":"IF($N26<Z26,1,0)","v":0},{"$f":"IF($N26>AA26,1,0)","v":0},0,{"$f":"IF(AB26>0,AG26,\"\")&IF(AC26>0,AH26,\"\")&IF(AD26>0,AI26,\"\")","v":""},null,"The connection fees (Building costs subsidy) are negativ!","The connection fees (Building costs subsidy) exceed the total investment (compare pos. 111 with pos. 156) "]
[null,null,null,null,null,null,null,null,null,null,null,null,null,null,null,null,null,null,null,null,null,null,null,null,null,null,null,null,null,null,{"$f":"AE28&AE29&AE31","v":""},"x"]
[112,null,null,null,null,null,null,null,null,null,null,null,"Altri ricavi annui",0,null,null,"€/a",null,null,null,null,null,null,null,null,0,9999999999,{"$f":"IF($N28<Z28,1,0)","v":0},{"$f":"IF($N28>AA28,1,0)","v":0},0,{"$f":"IF(AB28>0,AG28,\"\")&IF(AC28>0,AH28,\"\")&IF(AD28>0,AI28,\"\")","v":""},null,"Gli \"altri ricavi annui\" sono negativi!","Gli \"altri ricavi annui\" sono troppo alti!"]
[113,null,null,null,null,null,null,null,null,null,null,null,"Adeguamento del prezzo medio degli \"altri ricavi annui\".",9.9,null,null,"%",null,null,null,null,null,null,null,null,0,10,{"$f":"IF($N29<Z29,1,0)","v":0},{"$f":"IF($N29>AA29,1,0)","v":0},0,{"$f":"IF(AB29>0,AG29,\"\")&IF(AC29>0,AH29,\"\")&IF(AD29>0,AI29,\"\")","v":""},null,"L'adeguamento del prezzo degli \"altri ricavi annui\" è negativo!","L'adeguamento del prezzo degli \"altri ricavi annui\" è troppo alto!"]
[]
[114,null,null,null,null,null,null,null,null,null,null,null,"Inizio progetto",2009,null,null,null,null,null,null,null,null,null,null,null,2000,2100,{"$f":"IF($N31<Z31,1,0)","v":0},{"$f":"IF($N31>AA31,1,0)","v":0},0,{"$f":"IF(AB31>0,AG31,\"\")&IF(AC31>0,AH31,\"\")&IF(AD31>0,AI31,\"\")","v":""},null,"Si presume che la data di inizio progetto sia successiva all'anno 2000.","Si presume che la data di inizio progetto sia precedente all'anno 2100"]
[]
[120,"Prezzo del combustibile, costi di esercizio e di manutenzione "]
[null,null,null,null,null,null,null,null,null,null,null,null,null,null,null,null,null,null,null,null,null,null,null,null,null,null,null,null,null,null,{"$f":"AE35&AE36&AE37&AE38&AE39&AE41&AE42&AE43","v":""},"x"]
[121,null,null,null,null,null,null,null,null,null,null,null,"Prezzo del combustibile da biomassa",26,null,null,"€/MWh",null,null,null,null,null,null,null,null,0,100,{"$f":"IF($N35<Z35,1,0)","v":0},{"$f":"IF($N35>AA35,1,0)","v":0},{"$f":"IF(BiomassFuelPrice<0,1,0)","v":0},{"$f":"IF(AB35>0,AG35,\"\")&IF(AC35>0,AH35,\"\")&IF(AD35>0,AI35,\"\")","v":""},null,"Si presume che il prezzo del combustibile da biomassa sia negativo","Il prezzo del combustibile da biomassa è troppo alto"]
[122,null,null,null,null,null,null,null,null,null,null,null,"Quota di calore prodotto con la biomassa",95,null,95,"%",null,null,null,null,null,null,null,null,70,100,{"$f":"IF($N36<Z36,1,0)","v":0},{"$f":"IF($N36>AA36,1,0)","v":0},0,"",null,"La quota di calore prodotto con la biomassa è troppo bassa","La quota di calore prodotto con la biomassa è troppo alta"]
[123,null,null,null,null,null,null,null,null,null,null,null,"Adeguamento annuo del prezzo del combustibile da biomassa",2,null,null,"%/a",null,null,null,null,null,null,null,null,0,5,{"$f":"IF($N37<Z37,1,0)","v":0},{"$f":"IF($N37>AA37,1,0)","v":0},0,"",null,"L'adeguamento del prezzo del combustibile da biomassa ipotizzato è negativo!","L'adeguamento del prezzo del combustibile da biomassa ipotizzato è molto alto"]
[124,null,null,null,null,null,null,null,null,null,null,null,"Prezzo del combustibile fossile",56,null,null,"€/MWh",null,null,null,null,null,null,null,null,30,300,{"$f":"IF($N38<Z38,1,0)","v":0},{"$f":"IF($N38>AA38,1,0)","v":0},{"$f":"IF(FossilFuelPrice<BiomassFuelPrice,1,0)","v":0},"",null,"Il prezzo del combustibile fossile è troppo basso ","Il prezzo del combustibile fossile stimato è alto ","Il prezzo del combustibile fossile è più basso del prezzo del combustibile da biomassa "]
[125,null,null,null,null,null,null,null,null,null,null,null,"Adeguamento annuo del prezzo dei combustibili fossili",5,null,null,"%/a",null,null,null,null,null,null,null,null,0,10,{"$f":"IF($N39<Z39,1,0)","v":0},{"$f":"IF($N39>AA39,1,0)","v":0},{"$f":"IF(FossilFuelPriceTrend<BiomassFuelPriceTrend,1,0)","v":0},"",null,"L'adeguamento del prezzo del combustibile fossile è stato stimato essere negativo ","L'adeguamento del prezzo dei combustibili fossili è alto ","L'adeguamento del prezzo dei combustibili fossili è inferiore al prezzo del combustibile da biomassa"]
[]
[126,null,null,null,null,null,null,null,null,null,null,null,"Consumo specifico di energia elettrica",10,null,null,"kWhel/MWhth",null,null,null,null,null,null,null,null,2,20,{"$f":"IF($N41<Z41,1,0)","v":0},{"$f":"IF($N41>AA41,1,0)","v":0},{"$f":"IF(SpecificElectCons=0,1,0)","v":0},"",null,"Il consumo specifico di energia elettrica è stato stimato molto basso ","Il consumo specifico di energia elettrica è stato stimato molto alto","Il consumo specifico di energia elettrica è stato settato a 0"]
[127,null,null,null,null,null,null,null,null,null,null,null,"Prezzo dell'elettricità",0.13,null,null,"€/kWhel",null,null,null,null,null,null,null,null,4.0000000000000001E-3,0.8,{"$f":"IF($N42<Z42,1,0)","v":0},{"$f":"IF($N42>AA42,1,0)","v":0},{"$f":"IF(ElectricityPrice=0,1,0)","v":0},"",null,"Il prezzo dell'elettricità è stato stimato molto basso ","Il prezzo dell'elettricità è stato stimato molto alto ","Il prezzo dell'elettricità è stato settato a 0"]
[128,null,null,null,null,null,null,null,null,null,null,null,"Adeguamento annuo del prezzo dell'energia elettrica",5,null,null,"%/a",null,null,null,null,null,null,null,null,1,10,{"$f":"IF($N43<Z43,1,0)","v":0},{"$f":"IF($N43>AA43,1,0)","v":0},0,"",null,"L'adeguamento del prezzo dell'energia elettrica è stato stimato molto basso","L'adeguamento del prezzo dell'energia elettrica è stato stimato molto alto"]
[]
[null,null,null,null,null,null,null,null,null,null,null,null,null,null,null,null,null,null,null,null,null,null,null,null,null,null,null,null,null,null,{"$f":"AE46&AE47&AE48&AE49&AE50&AE52&AE53&AE54&AE56&AE57","v":""},"x"]
[130,null,null,null,null,null,null,null,null,null,null,null,"Costo del personale",15000,null,null,"€/a",null,null,null,null,null,null,null,null,0,999999,{"$f":"IF($N46<Z46,1,0)","v":0},{"$f":"IF($N46>AA46,1,0)","v":0},0,{"$f":"IF(AB46>0,AG46,\"\")&IF(AC46>0,AH46,\"\")&IF(AD46>0,AI46,\"\")","v":""},null,"Il costo annuale del personale è molto basso","Il costo annuale del personale è troppo alto"]
[131,null,null,null,null,null,null,null,null,null,null,null,"Adeguamento annuo del costo del personale",2,null,null,"%",null,null,null,null,null,null,null,null,0,10,0,0,0,"",null,"L'adeguamento annuo del costo del personale è stato stimato molto basso","L'adeguamento annuo del costo del personale è stato stimato molto alto"]
[132,null,null,null,null,null,null,null,null,null,null,null,"Costi di contabilità e di consulenza (fiscale)",0,null,null,"€/a",null,null,null,null,null,null,null,null,0,999999,0,0,0,"",null,"I costi di contabilità e consulenza sono molto bassi ","I costi annuali di contabilità e consulenza sono molto alti"]
[133,null,null,null,null,null,null,null,null,null,null,null,"Adeguamento annuo dei costi di contabilità e di consulenza (fiscale)",2,null,null,"%",null,null,null,null,null,null,null,null,0,10,0,0,0,"",null,"L'adeguamento dei costi di contabilità e di consulenza è stato stimato molto basso","L'adeguamento dei costi di contabilità e di consulenza è stato stimato molto alto"]
[134,null,null,null,null,null,null,null,null,null,null,null,"Costi di manutenzione",9000,null,null,"€/a",null,null,null,null,null,null,null,null,0,999999,0,0,0,"",null,"I costi annuali per la manutenzione sono molto bassi","I costi annuali per la manutenzione sono molto alti"]
[135,null,null,null,null,null,null,null,null,null,null,null,"Adeguamento annuo dei costi di manutenzione",2,null,null,"%",null,null,null,null,null,null,null,null,0,10,0,0,0,"",null,"L'adeguamento del prezzo dei costi di manutenzione stimato è molto basso","L'adeguamento del prezzo dei costi di manutenzione stimato è molto alto "]
[]
[136,null,null,null,null,null,null,null,null,null,null,null,"Costi annui per canoni di  locazione/leasing fabbricati e/o terreni",3500,null,null,"€/a",null,null,null,null,null,null,null,null,0,{"$f":"TotalInvestment/20","v":117750},{"$f":"IF($N53<Z53,1,0)","v":0},{"$f":"IF($N53>AA53,1,0)","v":0},0,{"$f":"IF(AB53>0,AG53,\"\")&IF(AC53>0,AH53,\"\")&IF(AD53>0,AI53,\"\")","v":""},null,"Il costo annuale per l'affitto/diritto di superficie/ terreno è stato stimato molto basso ","Il costo annuale per l'affitto/diritto di superficie/terreno è molto alto "]
[137,null,null,null,null,null,null,null,null,null,null,null,"Adeguamento annuo  dei  canoni di  locazione/leasing fabbricati e/o terreni\n",2.5,null,null,"%",null,null,null,null,null,null,null,null,0,5,{"$f":"IF($N54<Z54,1,0)","v":0},{"$f":"IF($N54>AA54,1,0)","v":0},0,{"$f":"IF(AB54>0,AG54,\"\")&IF(AC54>0,AH54,\"\")&IF(AD54>0,AI54,\"\")","v":""},null,"L'adeguamento del prezzo dei costi per l'affitto/diritto di superficie/terreno stimato è molto basso","L'adeguamento del prezzo dei costi per l'affitto/diritto di superficie/terreno stimato è molto alto"]
[]
[138,null,null,null,null,null,null,null,null,null,null,null,"Altri costi (assicurazioni, ecc.)",1500,null,null,"€/a",null,null,null,null,null,null,null,null,1000,999999,{"$f":"IF($N56<Z56,1,0)","v":0},{"$f":"IF($N56>AA56,1,0)","v":0},{"$f":"IF(OtherCosts=0,1,0)","v":0},{"$f":"IF(AB56>0,AG56,\"\")&IF(AC56>0,AH56,\"\")&IF(AD56>0,AI56,\"\")","v":""},null,"Il valore di \"altri costi\" è molto basso ","Il valore di \"altri costi\" è molto alto ","Il valore di \"other costs\" è stato stimato pari a 0 "]
[139,null,null,null,null,null,null,null,null,null,null,null,"Adeguamento annuo dei prezzi degli altri costi",3,null,null,"%",null,null,null,null,null,null,null,null,0.5,5,{"$f":"IF($N57<Z57,1,0)","v":0},{"$f":"IF($N57>AA57,1,0)","v":0},0,{"$f":"IF(AB57>0,AG57,\"\")&IF(AC57>0,AH57,\"\")&IF(AD57>0,AI57,\"\")","v":""},null,"L'adeguamento del prezzo stimato per \"altri costi\" è molto basso","L'adeguamento del prezzo stimato per \"altri costi\" è molto alto"]
[]
[150,"Spese di investimento"]
[151,null,null,null,null,null,null,null,null,null,null,null,"Spese ammissibili per richiesta contributi",null,null,null,null,null,null,null,null,null,null,null,null,null,null,null,null,null,{"$f":"AE61&AE62&AE63&AE64&AE65&AE66","v":""},"x"]
[null,null,null,null,null,null,null,null,null,null,null,null,"Installazione",520000,null,null,"€",null,null,null,null,null,null,null,null,10000,999999999,{"$f":"IF($N61<Z61,1,0)","v":0},{"$f":"IF($N61>AA61,1,0)","v":0},0,{"$f":"IF(AB61>0,AG61,\"\")&IF(AC61>0,AH61,\"\")&IF(AD61>0,AI61,\"\")","v":""},null,"I costi di installazione sono molto bassi","I costi di installazione sono troppo alti"]
[152,null,null,null,null,null,null,null,null,null,null,null,"Rete di teleriscaldamento",1200000,null,null,"€",null,null,null,null,null,null,null,null,10000,999999999,0,0,0,{"$f":"IF(AB62>0,AG62,\"\")&IF(AC62>0,AH62,\"\")&IF(AD62>0,AI62,\"\")","v":""},null,"I costi per la rete di teleriscaldamento sono molto bassi","I costi per la rete di teleriscaldamento sono troppo alti"]
[153,null,null,null,null,null,null,null,null,null,null,null,"Costruzione",450000,null,null,"€",null,null,null,null,null,null,null,null,10000,999999999,0,0,0,{"$f":"IF(AB63>0,AG63,\"\")&IF(AC63>0,AH63,\"\")&IF(AD63>0,AI63,\"\")","v":""},null,"I costi di costruzione sono molto bassi","I costi di costruzione solo molto alti "]
[154,null,null,null,null,null,null,null,null,null,null,null,"Pianificazione e gestione della qualità",120000,null,null,"€",null,null,null,null,null,null,null,null,1000,999999999,0,0,{"$f":"IF(PlanningQMCosts<TotalInvestment/50,1,0)","v":0},{"$f":"IF(AB64>0,AG64,\"\")&IF(AC64>0,AH64,\"\")&IF(AD64>0,AI64,\"\")","v":""},null,"I costi di pianificazione e gestione della qualità sono molto bassi","I costi di pianificazione e gestione della qualità sono molto alti ","I costi di pianificazione e gestione della qualità ammontano a meno del 2% dell'investimento "]
[155,null,null,null,null,null,null,null,null,null,null,null,"Costi non ammissibili a contributi",65000,null,null,"€",null,null,null,null,null,null,null,null,0,999999999,0,0,0,null,null,"I costi non ammissibili a contributo sono negativi","I costi non ammissibili a contributo sono molto alti "]
[156,null,null,null,null,null,null,null,null,null,null,null,"Totale investimenti",{"$f":"SUM(N61:P65)","v":2355000},null,null,"€",null,null,null,null,null,null,null,null,0,999999999,0,0,0]
[]
[160,"Capitale proprio, finanziamento di terzi, contributo (sussidio)"]
[null,null,null,null,null,null,null,null,null,null,null,null,null,null,null,null,null,null,null,null,null,null,null,null,null,null,null,null,null,null,{"$f":"AE70&AE71&AE72","v":""},"x"]
[161,null,null,null,null,null,null,null,null,null,null,null,"Mezzi propri",300000,null,null,"€",null,null,null,null,null,null,null,null,0,{"$f":"TotalInvestment","v":2355000},{"$f":"IF($N70<=Z70,1,0)","v":0},{"$f":"IF($N70>AA70,1,0)","v":0},0,{"$f":"IF(AB70>0,AG70,\"\")&IF(AC70>0,AH70,\"\")&IF(AD70>0,AI70,\"\")","v":""},null,"Il patrimonio netto equivale a = 0 è negativo","Il patrimonio netto è superiore al costo totale dell'investimento "]
[162,null,null,null,null,null,null,null,null,null,null,null,"Durata del prestito",20,null,null,"years",null,null,null,null,null,null,null,null,5,25,{"$f":"IF($N71<=Z71,1,0)","v":0},{"$f":"IF($N71>AA71,1,0)","v":0},0,{"$f":"IF(AB71>0,AG71,\"\")&IF(AC71>0,AH71,\"\")&IF(AD71>0,AI71,\"\")","v":""},null,"La durata del prestito è troppo breve","La durata del prestito non può superare i 25 anni!  "]
[163,null,null,null,null,null,null,null,null,null,null,null,"Interessi medi lordi sui prestiti",5.5,null,null,"%",null,null,null,null,null,null,null,null,3,10,{"$f":"IF($N72<=Z72,1,0)","v":0},{"$f":"IF($N72>AA72,1,0)","v":0},0,{"$f":"IF(AB72>0,AG72,\"\")&IF(AC72>0,AH72,\"\")&IF(AD72>0,AI72,\"\")","v":""},null,"Il tasso di interesse sul prestito indicato è molto basso","Il tasso di interesse sul prestito è molto alto"]
[]
[null,"Contributi e incentivi annuali",null,null,null,null,null,null,null,null,null,null,null,null,null,null,null,null,null,null,null,null,null,null,null,null,null,null,null,null,{"$f":"AE76&AE77&AE80&AE81&AE85","v":""},"x"]
[null,null,null,null,null,null,null,null,null,null,null,null,"Contributo per agli investimenti",null,null,null,null,null,null,null,null,null,null,null,null,null,null,null,null,null,null,null,true]
[164,null,null,null,null,null,null,null,null,null,null,null," % di finanziamento con contributo",30,null,null,"%",null,null,null,null,null,null,null,null,0,60,{"$f":"IF($N76<Z76,1,0)","v":0},{"$f":"IF($N76>AA76,1,0)","v":0},0,{"$f":"IF(AB76>0,AG76,\"\")&IF(AC76>0,AH76,\"\")&IF(AD76>0,AI76,\"\")","v":""},null,"Il tasso di sovvenzione inserito è troppo basso","Il tasso di sovvenzione inserito è troppo alto"]
[165,null,null,null,null,null,null,null,null,null,null,null,"Anno di erogazione del contributo",5,null,null,"Year (1-5)",null,null,null,null,null,null,null,null,1,5,{"$f":"IF($N77<Z77,1,0)","v":0},{"$f":"IF($N77>AA77,1,0)","v":0},{"$f":"IF(SubsidyDisbursementYear=0,1,IF(SubsidyDisbursementYear/(INT(SubsidyDisbursementYear))<>1,1,0))","v":0},{"$f":"IF(AB77>0,AG77,\"\")&IF(AC77>0,AH77,\"\")&IF(AD77>0,AI77,\"\")","v":""},null,"La sovvenzione non può essere erogata prima del 1° anno!","La sovvenzione non può essere erogata dopo il 5° anno!","L'anno in cui la sovvenzione viene erogata deve coincidere con un anno specifico (anno 1, 2, 3, 4 o 5, cifre oltre la virgola non sono permesse)."]
[]
[166,null,null,null,null,null,null,null,null,null,null,null,"Incentivi annuali ",null,null,null,null,null,null,null,null,null,null,null,null,null,null,null,null,null,null,null,true]
[167,null,null,null,null,null,null,null,null,null,null,null,"Importo nel 1° anno",3500,null,null,"€",null,null,null,null,null,null,null,null,0,999999999,{"$f":"IF($N80<Z80,1,0)","v":0},{"$f":"IF($N80>AA80,1,0)","v":0},0,{"$f":"IF(AB80>0,AG80,\"\")&IF(AC80>0,AH80,\"\")&IF(AD80>0,AI80,\"\")","v":""},null,"L'importo del sussidio in corso al 1° anno è negativo ","L'importo del sussidio in corso al 1° anno è troppo alto "]
[168,null,null,null,null,null,null,null,null,null,null,null,"Importo anni successivi",1000,null,null,"€",null,null,null,null,null,null,null,null,0,999999999,{"$f":"IF($N81<Z81,1,0)","v":0},{"$f":"IF($N81>AA81,1,0)","v":0},0,{"$f":"IF(AB81>0,AG81,\"\")&IF(AC81>0,AH81,\"\")&IF(AD81>0,AI81,\"\")","v":""},null,"Il valore dell'aumento annuale del sussidio è negativo","Il valore dell'aumento annuale del sussidio è molto alto"]
[169,null,null,null,null,null,null,null,null,null,null,null,"Adeguamento annuale incentivo",3,null,null,"%",null,null,null,null,null,null,null,null,0,10,{"$f":"IF($N82<Z82,1,0)","v":0},{"$f":"IF($N82>AA82,1,0)","v":0},0,{"$f":"IF(AB82>0,AG82,\"\")&IF(AC82>0,AH82,\"\")&IF(AD82>0,AI82,\"\")","v":""},null,"L'aumento percentuale annuale del sussidio in corso è negativo","L'aumento percentuale annuale del sussidio è molto alto"]
[]
[170,"Calcolo del valore attuale netto (VAN)"]
[171,null,null,null,null,null,null,null,null,null,null,null,"Tasso di interesse calcolo VAN",6,null,null,"%",null,null,null,null,null,null,null,null,2,10,{"$f":"IF($N85<Z85,1,0)","v":0},{"$f":"IF($N85>AA85,1,0)","v":0},{"$f":"IF(SubsidyDisbursementYear=0,1,IF(SubsidyDisbursementYear/(INT(SubsidyDisbursementYear))<>1,1,0))","v":0},{"$f":"IF(AB85>0,AG85,\"\")&IF(AC85>0,AH85,\"\")&IF(AD85>0,AI85,\"\")","v":""},null,"Il tasso di interesse stimato è molto basso","Il tasso di interesse stimato è molto alto"]
[]
[]
[180,"Valori calcolati"]
[]
[181,null,null,null,null,null,null,null,null,null,null,null,"Percentuale di calore prodotto con combustibili fossili",{"$f":"100-ShareBiomass","v":5},null,95,"%"]
[182,null,null,null,null,null,null,null,null,null,null,null,"Calore prodotto",{"$f":"HeatQuantitySold/UtilisationRateDHN*100+N13","v":11071.428571428571},null,95,"MWh"]
[183,null,null,null,null,null,null,null,null,null,null,null,"Combustibile utilizzato",{"$f":"N91/UtilisationRateBiomassBoiler*100","v":13025.210084033612},null,95,"MWh"]
[184,null,null,null,null,null,null,null,null,null,null,null,"Combustibile da biomassa utilizzato",{"$f":"N92*ShareBiomass/100","v":12373.949579831929},null,95,"MWh"]
[185,null,null,null,null,null,null,null,null,null,null,null,"Combustibile fossile utilizzato",{"$f":"N92*(ShareFossilFuels/100)","v":651.26050420168065},null,95,"MWh"]
[186,null,null,null,null,null,null,null,null,null,null,null,"Costi per l'energia elettrica",{"$f":"SpecificElectCons*HeatQuantitySold*ElectricityPrice","v":10075},null,null,"€"]
[]
[190,null,null,null,null,null,null,null,null,null,null,null,"Totale investimento ",{"$f":"TotalInvestment","v":2355000},null,null,"€"]
[191,null,null,null,null,null,null,null,null,null,null,null,"Spese ammissibili per richiesta contributo",{"$f":"N66-NonEligibleCosts","v":2290000},null,null,"€"]
[192,null,null,null,null,null,null,null,null,null,null,null,"Contributo totale",{"$f":"IF(AG75,N98*SubsidyQuote/100,0)","v":687000},null,null,"€"]
[193,null,null,null,null,null,null,null,null,null,null,null,"Totale debito verso banche (prestito senior + ponte) ",{"$f":"N66-Equity","v":2055000},null,null,"€"]
[194,null,null,null,null,null,null,null,null,null,null,null,"Prestito senior mutuo principale di lungo periodo",{"$f":"LoanAmount-SubsidyAmount","v":1368000},null,null,"€"]
[]
[195,null,null,null,null,null,null,null,null,null,null,null,"Interessi su prestiti 1° anno ",{"$f":"N100*GrossLoanInterest/100","v":113025},null,null,"€"]
[196,null,null,null,null,null,null,null,null,null,null,null,"Rata annuale prestito senior (mutuo)",{"$f":"-PMT(GrossLoanInterest/100,LoanPeriod,N101)","v":114473.3234877886},null,{"$f":"PMT(LoanAmount,GrossLoanInterest,LoanPeriod)","v":-41100000},"€"]
[197,null,null,null,null,null,null,null,null,null,null,null,"Rata annuale prestito ponte fino all'erogazione del sussidio",{"$f":"Annuity+SubsidyAmount*GrossLoanInterest/100","v":152258.32348778861},null,{"$f":"PMT(LoanAmount,GrossLoanInterest,LoanPeriod)","v":-41100000},"€"]

{"sheet":"Costo del calore","index":3,"n_rows":60,"n_cols":12,"rows_kept":60,"cut":false,"hidden":false,"merged":[[11,2,11,8],[2,3,2,8],[62,8,62,13],[15,3,15,4],[25,3,25,4],[35,3,35,4]]}
[null,"Calcolo della redditività economica - Prezzo del calore"]
[]
[null,"Titolo del progetto:",null,{"$f":"IF('Dati di ingresso'!F4<>\"\",'Dati di ingresso'!F4,\"\")","v":"Esempio di progetto"}]
[null,null,null,null,null,null,null,null,null,true]
[100,"(IVA esclusa)",null,"cella di input",null,null,null,null,null,true]
[]
[401,"Opzione",null,"Prezzo profilato per tipologia di cliente",null,null,null,null,null,{"$f":"IF(J4,(G23*G16+G26*G33+G36*G43)/100*1000,G48)","v":61.863636363636367}]
[402,null,null,"Sconti sul prezzo secondo le quantità di calore vendute",null,null,null,null,null,{"$f":"IF(J5,(J60+K60+L60)/100*1000,0)","v":57.210454545454553}]
[]
[403,"Prezzo di vendita:",null,null,{"$f":"IF(AND(J4,J5),J8,J7)","v":57.210454545454553},"€/MWh",null,{"$f":"E10/1000","v":5.721045454545455E-2},"€/kWh","Errore","Attenzione"]
[]
[null,"Avvertenze",{"$f":"IF(J12>0,K12,\"\")","v":""},null,null,null,null,null,null,{"$f":"SUM(J14:J43)","v":0},{"$f":"K14&K16&K17&K18&K19&K20&K21&K23&K26&K27&K28&K29&K30&K31&K33&K36&K37&K38&K39&K40&K41&K43&K7","v":""}]
[]
[404,"Prezzo profilato per tipologia di cliente",null,null,null,null,null,null,null,{"$f":"IF(G16+G26+G36>100,1,0)","v":0},{"$f":"IF(J14>0,L14,\"\")","v":""},"Somma dei consumi di calore di tuitte le categorie di clienti è maggiore del 100%. Correggi! Verifica punti 405, 412 & 413."]
[]
[405,"Tipo cliente 1",null,"Cliente privato",null,null,15,"% of the heat sale",null,{"$f":"IF(G16+G26+G36<100,1,0)","v":0},{"$f":"IF(J16>0,L16,\"\")","v":""},"Somma dei consumi di calore di tuitte le categorie di clienti è minore del 100%. Correggi! Verifica punti 405, 412 & 413."]
[406,null,null,null,null,"Costo fisso Impegno in potenza",60,"€/kW",null,null,{"$f":"IF(J17>0,L17,\"\")","v":""}]
[407,null,null,null,null,"Servizio misure e gest. Contatore",60,"€/a",null,null,""]
[408,null,null,null,null,"Prezzo energia fornita",4.4999999999999998E-2,"€/kWh",null,null,""]
[409,null,null,null,null,"Potenza media installata",14,"kW",null,{"$f":"IF(G20>G30,1,0)","v":0},"","Potenza installata (i.e. expected connected load) per clienti privati è più alta di quella per clienti commerciali! "]
[410,null,null,null,null,"Consumo medio di calore",24000,"kWh"]
[null,null,null,null,null,null,null,null,null,null,""]
[411,null,null,null,null,"Prezzo del calore Tipo 1",{"$f":"(G17*G20+G18+G19*G21)/G21","v":8.2500000000000004E-2},"€/kWh",null,null,""]
[null,null,null,null,null,null,null,null,null,null,""]
[null,null,null,null,null,null,null,null,null,null,""]
[412,"Tipo cliente 2",null,"Cliente commerciale",null,null,25,"% of the heat sale",null,null,""]
[406,null,null,null,null,"Costo fisso Impegno in potenza",50,"€/kW",null,null,""]
[407,null,null,null,null,"Servizio misure e gest. Contatore",90,"€/a",null,null,""]
[408,null,null,null,null,"Prezzo energia fornita",0.04,"€/kWh",null,null,""]
[409,null,null,null,null,"Potenza media installata",35,"kW",null,{"$f":"IF(G30>G40,1,0)","v":0},"","Potenza installata (i.e. expected connected load) per clienti commerciali più alta di quella per grandi consumatori! "]
[410,null,null,null,null,"Consumo medio di calore",55000,"kWh",null,null,""]
[null,null,null,null,null,null,null,null,null,null,""]
[411,null,null,null,null,"Prezzo del calore Tipo 2",{"$f":"(G27*G30+G28+G29*G31)/G31","v":7.3454545454545453E-2},"€/kWh",null,null,""]
[null,null,null,null,null,null,null,null,null,null,""]
[null,null,null,null,null,null,null,null,null,null,""]
[413,"Tipo cliente 3",null,"Grande consumatore",null,null,60,"% of the heat sale",null,null,""]
[406,null,null,null,null,"Costo fisso Impegno in potenza",10,"€/kW",null,null,""]
[407,null,null,null,null,"Servizio misure e gest. Contatore",250,"€/a",null,null,""]
[408,null,null,null,null,"Prezzo energia fornita",0.03,"€/kWh",null,null,""]
[409,null,null,null,null,"Potenza media installata",500,"kW",null,null,""]
[410,null,null,null,null,"Consumo medio di calore",240000,"kWh",null,null,""]
[null,null,null,null,null,null,null,null,null,null,""]
[411,null,null,null,null,"Prezzo del calore Tipo 3",{"$f":"(G37*G40+G38+G39*G41)/G41","v":5.1874999999999998E-2},"€/kWh",null,null,""]
[]
[]
[414,"Prezzo medio unico "]
[]
[414,null,null,null,null,"Prezzo medio unico del calore",{"$f":"K48*10","v":0.57899686520376181},"€/MWh",null,null,{"$f":"((G23*G21)+(G33*G31)+(G43*G41))/(G21+G31+G41)","v":5.7899686520376178E-2}]
[]
[415,"Sconti sul prezzo"]
[]
[]
[null,null,null,"Limite inferiore","Limite superiore"]
[null,"Scaglioni di consumo",null,"da kWh/a","a kWh/a",null,"Sconto","coefficiente riduzione prezzo",null,"Prezzo 1","Prezzo 2","Prezzo 3"]
[416,"Scaglione 1",null,0,50000,"kWh/a",0,{"$f":"100%-G55","v":1},null,{"$f":"IF($G$21<$E55,$G$23*$H55*$G$16,0)","v":1.2375},{"$f":"IF($G$31<$E55,$G$33*$H55*$G$26,0)","v":0},{"$f":"IF($G$41<$E55,$G$43*$H55*$G$36,0)","v":0}]
[417,"Scaglione 2",null,{"$f":"E55+1","v":50001},120000,"kWh/a",0.05,{"$f":"100%-G56","v":0.95},null,{"$f":"IF(J55>0,0,IF($G$21<$E56,$G$23*$H56*$G$16,0))","v":0},{"$f":"IF(K55>0,0,IF($G$31<$E56,$G$33*$H56*$G$26,0))","v":1.7445454545454546},{"$f":"IF(L55>0,0,IF($G$41<$E56,$G$43*$H56*$G$36,0))","v":0}]
[418,"Scaglione 3",null,{"$f":"E56+1","v":120001},180000,"kWh/a",0.08,0.92,null,{"$f":"IF(J56+J55>0,0,IF($G$21<$E57,$G$23*$H57*$G$16,0))","v":0},{"$f":"IF(K55+K56>0,0,IF($G$31<$E57,$G$33*$H57*$G$26,0))","v":0},{"$f":"IF(L56+L55>0,0,IF($G$41<$E57,$G$43*$H57*$G$36,0))","v":0}]
[419,"Scaglione 4",null,{"$f":"E57+1","v":180001},350000,"kWh/a",0.12,0.88,null,{"$f":"IF(J55+J56+J57>0,0,IF($G$21<$E58,$G$23*$H58*$G$16,0))","v":0},{"$f":"IF(K55+K56+K57>0,0,IF($G$31<$E58,$G$33*$H58*$G$26,0))","v":0},{"$f":"IF(L55+L56+L57>0,0,IF($G$41<$E58,$G$43*$H58*$G$36,0))","v":2.7389999999999999}]
[420,"Scaglione 5",null,{"$f":"E58+1","v":350001},{"$f":"1E+99","v":9.9999999999999997E+98},"kWh/a",0.15,0.85,null,{"$f":"IF(J55+J56+J57+J58>0,0,IF($G$21<$E59,$G$23*$H59*$G$16,0))","v":0},{"$f":"IF(K55+K56+K57+K58>0,0,IF($G$31<$E59,$G$33*$H59*$G$26,0))","v":0},{"$f":"IF(L55+L56+L57+L58>0,0,IF($G$41<$E59,$G$43*$H59*$G$36,0))","v":0}]
[null,null,null,null,null,null,null,null,null,{"$f":"SUM(J55:J59)","v":1.2375},{"$f":"SUM(K55:K59)","v":1.7445454545454546},{"$f":"SUM(L55:L59)","v":2.7389999999999999}]

{"sheet":"Risultati","index":4,"n_rows":89,"n_cols":23,"rows_kept":89,"cut":false,"hidden":false,"merged":[[19,3,19,11],[19,12,19,16],[2,3,2,8],[3,7,3,8],[4,7,4,8]]}
[900,"Calcolo della redditività economica - Risultati"]
[]
[null,"Titolo del progetto:",null,{"$f":"IF('Dati di ingresso'!F4<>\"\",'Dati di ingresso'!F4,\"\")","v":"Esempio di progetto"},null,null,null,null,null,null,null,{"$f":"IF('Dati di ingresso'!E8&'Costo del calore'!C12<>\"\",\"Es existieren Warnungen\",\"\")","v":""}]
[156,"Investimento:",null,{"$f":"TotalInvestment","v":2355000},"€",null,"Contributo/i:",{"$f":"IF('Dati di ingresso'!AG75,SubsidyAmount,0)","v":687000},null,"€"]
[161,"Mezzi propri",null,{"$f":"Equity","v":300000},"€",null,"Avvio progetto",{"$f":"ProjectStart","v":2009}]
[]
[901,"Costi operativi (100% vendita calore nell'anno 1)",null,null,null,null,"Importo [€]","Indice [%]","Anno di riferimento",null,905,"Ricavi (100% vendita calore nell'anno 1)",null,null,null,"Importo [€]","Indice [%]","Anno di riferimento [a]"]
[null,null,null,null,null,null,{"$f":"SUM(G10:G17)","v":397268.27731092426},{"$f":"(G10*H10+G11*H11+G12*H12+G13*H13+G14*H14+G15*H15+G16*H16+G17*H17)/(SUM(G10:G17))","v":2.3596732305762518E-2},{"$f":"ProjectStart","v":2009},null,null,null,null,null,null,{"$f":"SUM(P10:P12)","v":507250},{"$f":"(P10*Q10+P11*Q11+P12*Q12)/(SUM(P10:P12))","v":2.5034499753573188E-2},{"$f":"ProjectStart","v":2009}]
[]
[null,"Combustibile da biomassa",null,null,null,null,{"$f":"BiomassFuelPrice*BiomassFuelUsed","v":321722.68907563016},{"$f":"BiomassFuelPriceTrend/100","v":0.02},2009,null,null,"Vendita di calore",null,null,null,{"$f":"HeatQuantitySold*HeatSalesPrice","v":503750},{"$f":"HeatSalesPriceTrend/100","v":2.5000000000000001E-2},{"$f":"ProjectStart","v":2009}]
[null,"Combustibile fossile",null,null,null,null,{"$f":"FossilFuelUsed*FossilFuelPrice","v":36470.588235294119},{"$f":"FossilFuelPriceTrend/100","v":0.05},2009,null,null,"incentivi in corso",null,null,null,{"$f":"IF('Dati di ingresso'!$AG$79,OngoingSubsidyYear1,0)","v":3500},{"$f":"IF(P11=0,0,OngoingSubsidyTrend/100)","v":0.03},{"$f":"IF(P11=0,\"\",ProjectStart)","v":2009}]
[null,"Costi del personale",null,null,null,null,{"$f":"PersonnelExpenses","v":15000},{"$f":"PersonnelExpensesTrend/100","v":0.02},2009,null,null,"Ricavi aggiuntivi",null,null,null,{"$f":"OtherRevenues","v":0},{"$f":"IF(P12=0,0,OtherRevenuesTrend/100)","v":0},{"$f":"IF(P12=0,\"\",ProjectStart)","v":""}]
[null,"Energia elettrica",null,null,null,null,{"$f":"'Dati di ingresso'!N95","v":10075},{"$f":"ElectricityPriceTrend/100","v":0.05},2009,null,910,"VAN:",null,null,null,"Importo [€]"]
[null,"Contabilità e consulenza",null,null,null,null,{"$f":"AccountingConsultingExp","v":0},{"$f":"IF(G14=0,0,AccountingConsultingExpTrend/100)","v":0},{"$f":"IF(G14=0,\"\",ProjectStart)","v":""},null,null,"VAN  (Periodo 1-10)",null,null,null,{"$f":"NPV(InterestRate/100,R25:R$34)","v":-69025.991397296588}]
[null,"Manutenzione",null,null,null,null,{"$f":"MaintenanceCosts","v":9000},{"$f":"MaintenanceCostsTrend/100","v":0.02},2009,null,null,"VAN (Periodo 1-15)",null,null,null,{"$f":"NPV(InterestRate/100,R25:R$39)","v":55082.915814229418}]
[null,"Affitto / affitto / terreno",null,null,null,null,{"$f":"LandCosts","v":3500},{"$f":"IF(G16=0,0,LandCostsTrend/100)","v":2.5000000000000001E-2},{"$f":"IF(G16=0,\"\",ProjectStart)","v":2009},null,null,"VAN (Periodo 1-20)",null,null,null,{"$f":"NPV(InterestRate/100,R25:R$44)","v":196416.82715755884}]
[null,"Altri (assicurazioni, ecc.)",null,null,null,null,{"$f":"OtherCosts","v":1500},{"$f":"IF(G17=0,0,OtherCostsTrend/100)","v":0.03},{"$f":"IF(G17=0,\"\",ProjectStart)","v":2009},null,null,"VAN (Periodo 1-25)",null,null,null,{"$f":"NPV(InterestRate/100,R25:R$49)","v":491013.60457796452}]
[]
[]
[920,null,null,"Uscite finanziarie",null,null,null,null,null,null,null,null,"Entrate finanziarie"]
[]
["930- \n950","Anno","Vendita calore","Combustibile da biomassa","Combustibile fossile","Personale, contabilità e consulenza","Elettricità","Manutenzione","Altri (affitto, ecc.)","Esborsi aggiuntivi","Rata mutuo","Totale uscite per costi operativi + rate mutuo","Vendita di calore","Entrate una tantum per allacciamento rete","Incentivi\nannuali\n","Altri ricavi","Totale entrate","Flussi finanziari netti annuali per il calcolo del VAN","Flussi di cassa cumulativi",null,"anno","Dewbito residuo a fine anno","Contributo"]
[null,null,1,2,3,4,5,6,7,8,9,"10=2+3+4+ 5+6+7+8+9",11,12,13,14," 15 = 11+12 +13+14"," 16 = 15 - 10","17 = 16 + 17 (PY Previous Year)",null,null,18,19]
[null,"[yyyy]","%","€/a","€/a","€/a","€/a","€/a","€/a","€/a","€/a","€/a","€/a","€/a","€/a","€/a","€/a","€/a",null,null,null,"€","€"]
[null,{"$f":"ProjectStart","v":2009},{"$f":"ConsFactor_y1","v":60},{"$f":"BiomassFuelUsed*C25/100*BiomassFuelPrice","v":193033.61344537808},{"$f":"FossilFuelUsed*FossilFuelPrice*C25/100","v":21882.352941176472},{"$f":"PersonnelExpenses+AccountingConsultingExp","v":15000},{"$f":"SpecificElectCons*HeatQuantitySold*ElectricityPrice*C25/100","v":6045},{"$f":"'Dati di ingresso'!N50","v":9000},{"$f":"LandCosts+OtherCosts","v":5000},0,{"$f":"IF(SubsidyDisbursementYear=1,Annuity,AnnuityTillSubsidyDisb)+Equity","v":452258.32348778861},{"$f":"SUM(D25:K25)","v":702219.2898743432},{"$f":"HeatQuantitySold*C25/100*HeatSalesPrice","v":302250},{"$f":"ConnectionFees*C25/100","v":210000},{"$f":"IF('Dati di ingresso'!$AG$79,OngoingSubsidyYear1,0)","v":3500},{"$f":"P12","v":0},{"$f":"SUM(M25:P25)","v":515750},{"$f":"-L25+Q25","v":-186469.2898743432},null,null,1,{"$f":"IF(ISNUMBER(-LoanAmount-PPMT(GrossLoanInterest/100,$U25,LoanPeriod,LongtermLoanAmount,0)+$W25),-LoanAmount-PPMT(GrossLoanInterest/100,$U25,LoanPeriod,LongtermLoanAmount,0)+$W25,0)","v":-2015766.6765122113},{"$f":"IF(SubsidyDisbursementYear=1,IstFörderBetrag,0)","v":0}]
[null,{"$f":"B25+1","v":2010},{"$f":"ConsFactor_y2","v":80},{"$f":"BiomassFuelUsed*C26/100*BiomassFuelPrice*(1+$H$10)^1","v":262525.7142857142},{"$f":"FossilFuelUsed*FossilFuelPrice*C26/100*(1+$H$11)^1","v":30635.294117647063},{"$f":"$G$12*(1+$H$12)^(B26-B$25)+$G$14*(1+$H$14)^(B26-B$25)","v":15300},{"$f":"SpecificElectCons*HeatQuantitySold*ElectricityPrice*(C26/100)*(1+$H$13)","v":8463},{"$f":"H25*(1+$H$15)","v":9180},{"$f":"$G$16*(1+$H$16)^(B26-B$25)+$G$17*(1+$H$17)^(B26-B$25)","v":5132.5},0,{"$f":"IF(SubsidyDisbursementYear<=2,Annuity,AnnuityTillSubsidyDisb)","v":152258.32348778861},{"$f":"SUM(D26:K26)","v":483494.83189114986},{"$f":"HeatQuantitySold*C26/100*HeatSalesPrice*(1+$Q$10)","v":413074.99999999994},{"$f":"ConnectionFees*(C26-C25)/100","v":70000},{"$f":"IF('Dati di ingresso'!$AG$79,O25+OngoingSubsidyIncrease+OngoingSubsidyTrend*O25/100,0)","v":4605},{"$f":"$P$25*(1+$Q$12)^1","v":0},{"$f":"SUM(M26:P26)","v":487679.99999999994},{"$f":"-L26+Q26","v":4185.1681088500773},{"$f":"R25+R26","v":-182284.12176549312},null,2,{"$f":"IF(ISNUMBER(V25-PPMT(GrossLoanInterest/100,$U26,LoanPeriod,LongtermLoanAmount,0)+$W26),V25-PPMT(GrossLoanInterest/100,$U26,LoanPeriod,LongtermLoanAmount,0)+$W26,0)","v":-1974375.5202325943},{"$f":"IF(SubsidyDisbursementYear=2,SubsidyAmount,0)","v":0}]
[null,{"$f":"B26+1","v":2011},{"$f":"ConsFactor_y3","v":100},{"$f":"BiomassFuelUsed*C27/100*BiomassFuelPrice*(1+$H$10)^2","v":334720.28571428562},{"$f":"FossilFuelUsed*FossilFuelPrice*C27/100*(1+$H$11)^2","v":40208.823529411769},15606,{"$f":"SpecificElectCons*HeatQuantitySold*ElectricityPrice*(C27/100)*(1+$H$13)^2","v":11107.6875},{"$f":"H26*(1+$H$15)","v":9363.6},{"$f":"$G$16*(1+$H$16)^(B27-B$25)+$G$17*(1+$H$17)^(B27-B$25)","v":5268.5374999999995},0,{"$f":"IF(SubsidyDisbursementYear<=3,Annuity,AnnuityTillSubsidyDisb)","v":152258.32348778861},568533.25773148588,{"$f":"HeatQuantitySold*C27/100*HeatSalesPrice*(1+$Q$10)^2","v":529252.34375},{"$f":"ConnectionFees*(C27-C26)/100","v":70000},{"$f":"IF('Dati di ingresso'!$AG$79,O26+OngoingSubsidyIncrease+OngoingSubsidyTrend*O26/100,0)","v":5743.15},{"$f":"$P$25*(1+$Q$12)^2","v":0},{"$f":"SUM(M27:P27)","v":604995.49375000002},36462.236018514144,{"$f":"S26+R27","v":-145821.88574697898},null,3,-1930707.8503575984,{"$f":"IF(SubsidyDisbursementYear=3,SubsidyAmount,0)","v":0}]
[null,2012,{"$f":"$C$27*(IF(((1+'Dati di ingresso'!$N$20/100)^1)>(1+ConsFactorMax/100),(1+ConsFactorMax/100),(1+'Dati di ingresso'!$N$20/100)^1))","v":100},{"$f":"BiomassFuelUsed*C28/100*BiomassFuelPrice*(1+$H$10)^3","v":341414.6914285713},{"$f":"FossilFuelUsed*FossilFuelPrice*C28/100*(1+$H$11)^3","v":42219.264705882357},15918.119999999999,{"$f":"SpecificElectCons*HeatQuantitySold*ElectricityPrice*(C28/100)*(1+$H$13)^3","v":11663.071875000001},{"$f":"H27*(1+$H$15)","v":9550.8720000000012},5408.2076874999993,0,{"$f":"IF(SubsidyDisbursementYear<=4,Annuity,AnnuityTillSubsidyDisb)","v":152258.32348778861},578432.55118474225,{"$f":"HeatQuantitySold*C28/100*HeatSalesPrice*(1+$Q$10)^3","v":542483.65234374988},{"$f":"ConnectionFees*(C28-C27)/100","v":0},{"$f":"IF('Dati di ingresso'!$AG$79,O27+OngoingSubsidyIncrease+OngoingSubsidyTrend*O27/100,0)","v":6915.4444999999996},{"$f":"$P$25*(1+$Q$12)^3","v":0},549399.09684374987,-29033.454340992379,{"$f":"S27+R28","v":-174855.34008797136},null,4,-1884638.4586394776,{"$f":"IF(SubsidyDisbursementYear=4,SubsidyAmount,0)","v":0}]
[null,2013,{"$f":"$C$27*(IF(((1+'Dati di ingresso'!$N$20/100)^2)>(1+ConsFactorMax/100),(1+ConsFactorMax/100),(1+'Dati di ingresso'!$N$20/100)^2))","v":100},{"$f":"BiomassFuelUsed*C29/100*BiomassFuelPrice*(1+$H$10)^4","v":348242.98525714275},{"$f":"FossilFuelUsed*FossilFuelPrice*C29/100*(1+$H$11)^4","v":44330.227941176476},16236.482399999999,{"$f":"SpecificElectCons*HeatQuantitySold*ElectricityPrice*(C29/100)*(1+$H$13)^4","v":12246.225468750001},{"$f":"H28*(1+$H$15)","v":9741.8894400000008},5551.6083321874994,0,{"$f":"IF(SubsidyDisbursementYear<=5,Annuity,AnnuityTillSubsidyDisb)","v":114473.3234877886},550822.7423270453,{"$f":"HeatQuantitySold*C29/100*HeatSalesPrice*(1+$Q$10)^4","v":556045.74365234363},{"$f":"ConnectionFees*(C29-C28)/100","v":0},{"$f":"IF('Dati di ingresso'!$AG$79,O28+OngoingSubsidyIncrease+OngoingSubsidyTrend*O28/100,0)","v":8122.907835},{"$f":"$P$25*(1+$Q$12)^4","v":0},564168.6514873436,13345.909160298295,{"$f":"S28+R29","v":-161509.43092767306},null,5,-1149035.2503768604,{"$f":"IF(SubsidyDisbursementYear=5,SubsidyAmount,0)","v":687000}]
[null,2014,{"$f":"$C$27*(IF(((1+'Dati di ingresso'!$N$20/100)^3)>(1+ConsFactorMax/100),(1+ConsFactorMax/100),(1+'Dati di ingresso'!$N$20/100)^3))","v":100},{"$f":"BiomassFuelUsed*C30/100*BiomassFuelPrice*(1+$H$10)^5","v":355207.8449622856},{"$f":"FossilFuelUsed*FossilFuelPrice*C30/100*(1+$H$11)^5","v":46546.739338235304},16561.212048000001,{"$f":"SpecificElectCons*HeatQuantitySold*ElectricityPrice*(C30/100)*(1+$H$13)^5","v":12858.536742187502},{"$f":"H29*(1+$H$15)","v":9936.7272288000004},5698.839856567186,0,{"$f":"IF(B30-$B$25<LoanPeriod,Annuity,0)","v":114473.3234877886},561283.22366386419,{"$f":"HeatQuantitySold*C30/100*HeatSalesPrice*(1+$Q$10)^5","v":569946.88724365213},{"$f":"ConnectionFees*(C30-C29)/100","v":0},{"$f":"IF('Dati di ingresso'!$AG$79,O29+OngoingSubsidyIncrease+OngoingSubsidyTrend*O29/100,0)","v":9366.5950700499998},{"$f":"$P$25*(1+$Q$12)^5","v":0},579313.48231370212,18030.258649837924,{"$f":"S29+R30","v":-143479.17227783514},null,6,-1097758.8656597992,{"$f":"IF(SubsidyDisbursementYear=6,SubsidyAmount,0)","v":0}]
[null,2015,{"$f":"$C$27*(IF(((1+'Dati di ingresso'!$N$20/100)^4)>(1+ConsFactorMax/100),(1+ConsFactorMax/100),(1+'Dati di ingresso'!$N$20/100)^4))","v":100},{"$f":"BiomassFuelUsed*C31/100*BiomassFuelPrice*(1+$H$10)^6","v":362312.00186153135},{"$f":"FossilFuelUsed*FossilFuelPrice*C31/100*(1+$H$11)^6","v":48874.076305147057},16892.436288960002,{"$f":"SpecificElectCons*HeatQuantitySold*ElectricityPrice*(C31/100)*(1+$H$13)^6","v":13501.463579296875},10135.461773376001,5850.0054085386155,0,114473.3234877886,572038.76870463847,{"$f":"HeatQuantitySold*C31/100*HeatSalesPrice*(1+$Q$10)^6","v":584195.55942474341},0,{"$f":"IF('Dati di ingresso'!$AG$79,O30+OngoingSubsidyIncrease+OngoingSubsidyTrend*O30/100,0)","v":10647.5929221515},{"$f":"$P$25*(1+$Q$12)^6","v":0},594843.15234689496,22804.383642256493,{"$f":"S30+R31","v":-120674.78863557865},null,7,-1043662.2797832995,{"$f":"IF(SubsidyDisbursementYear=7,SubsidyAmount,0)","v":0}]
[null,2016,{"$f":"$C$27*(IF(((1+'Dati di ingresso'!$N$20/100)^5)>(1+ConsFactorMax/100),(1+ConsFactorMax/100),(1+'Dati di ingresso'!$N$20/100)^5))","v":100},{"$f":"BiomassFuelUsed*C32/100*BiomassFuelPrice*(1+$H$10)^7","v":369558.24189876189},{"$f":"FossilFuelUsed*FossilFuelPrice*C32/100*(1+$H$11)^7","v":51317.780120404423},17230.285014739198,{"$f":"SpecificElectCons*HeatQuantitySold*ElectricityPrice*(C32/100)*(1+$H$13)^7","v":14176.536758261722},10338.171008843521,6005.2109359760489,0,114473.3234877886,583099.5492247754,{"$f":"HeatQuantitySold*C32/100*HeatSalesPrice*(1+$Q$10)^7","v":598800.44841036201},0,{"$f":"IF('Dati di ingresso'!$AG$79,O31+OngoingSubsidyIncrease+OngoingSubsidyTrend*O31/100,0)","v":11967.020709816044},{"$f":"$P$25*(1+$Q$12)^7","v":0},{"$f":"SUM(M32:P32)","v":610767.46912017802},27667.919895402621,-93006.868740176025,null,8,-986590.38168359245,{"$f":"IF(SubsidyDisbursementYear=8,SubsidyAmount,0)","v":0}]
[null,2017,{"$f":"$C$27*(IF(((1+'Dati di ingresso'!$N$20/100)^6)>(1+ConsFactorMax/100),(1+ConsFactorMax/100),(1+'Dati di ingresso'!$N$20/100)^6))","v":100},{"$f":"BiomassFuelUsed*C33/100*BiomassFuelPrice*(1+$H$10)^8","v":376949.40673673718},{"$f":"FossilFuelUsed*FossilFuelPrice*C33/100*(1+$H$11)^8","v":53883.66912642464},17574.890715033984,{"$f":"SpecificElectCons*HeatQuantitySold*ElectricityPrice*(C33/100)*(1+$H$13)^8","v":14885.363596174806},10544.934429020392,6164.5652633661357,0,114473.3234877886,594476.15335454571,{"$f":"HeatQuantitySold*C33/100*HeatSalesPrice*(1+$Q$10)^8","v":613770.45962062106},0,{"$f":"IF('Dati di ingresso'!$AG$79,O32+OngoingSubsidyIncrease+OngoingSubsidyTrend*O32/100,0)","v":13326.031331110526},{"$f":"$P$25*(1+$Q$12)^8","v":0},627096.49095173157,32620.337597185862,-60386.531142990163,null,9,-926379.52918840142,{"$f":"IF(SubsidyDisbursementYear=9,SubsidyAmount,0)","v":0}]
[null,2018,{"$f":"$C$27*(IF(((1+'Dati di ingresso'!$N$20/100)^7)>(1+ConsFactorMax/100),(1+ConsFactorMax/100),(1+'Dati di ingresso'!$N$20/100)^7))","v":100},{"$f":"BiomassFuelUsed*C34/100*BiomassFuelPrice*(1+$H$10)^9","v":384488.39487147192},{"$f":"FossilFuelUsed*FossilFuelPrice*C34/100*(1+$H$11)^9","v":56577.852582745872},17926.388529334661,{"$f":"SpecificElectCons*HeatQuantitySold*ElectricityPrice*(C34/100)*(1+$H$13)^9","v":15629.631775983546},10755.8331176008,6328.1801705606958,0,114473.3234877886,606179.6045354862,{"$f":"HeatQuantitySold*C34/100*HeatSalesPrice*(1+$Q$10)^9","v":629114.72111113649},0,{"$f":"IF('Dati di ingresso'!$AG$79,O33+OngoingSubsidyIncrease+OngoingSubsidyTrend*O33/100,0)","v":14725.812271043842},{"$f":"$P$25*(1+$Q$12)^9","v":0},643840.53338218038,37660.92884669418,{"$f":"S33+R34","v":-22725.602296295983},null,10,-862857.07980597496,{"$f":"IF(SubsidyDisbursementYear=10,SubsidyAmount,0)","v":0}]
[null,2019,{"$f":"$C$27*(IF(((1+'Dati di ingresso'!$N$20/100)^8)>(1+ConsFactorMax/100),(1+ConsFactorMax/100),(1+'Dati di ingresso'!$N$20/100)^8))","v":100},{"$f":"BiomassFuelUsed*C35/100*BiomassFuelPrice*(1+$H$10)^10","v":392178.16276890138},{"$f":"FossilFuelUsed*FossilFuelPrice*C35/100*(1+$H$11)^10","v":59406.745211883164},18284.916299921355,{"$f":"SpecificElectCons*HeatQuantitySold*ElectricityPrice*(C35/100)*(1+$H$13)^10","v":16411.113364782723},10970.949779952816,6496.1704737034324,0,114473.3234877886,618221.38138693338,{"$f":"HeatQuantitySold*C35/100*HeatSalesPrice*(1+$Q$10)^10","v":644842.58913891483},0,{"$f":"IF('Dati di ingresso'!$AG$79,O34+OngoingSubsidyIncrease+OngoingSubsidyTrend*O34/100,0)","v":16167.586639175157},{"$f":"$P$25*(1+$Q$12)^10","v":0},661010.17577809002,42788.79439115664,20063.192094860657,null,11,-795840.89570751507,{"$f":"IF(SubsidyDisbursementYear=11,SubsidyAmount,0)","v":0}]
[null,2020,{"$f":"$C$27*(IF(((1+'Dati di ingresso'!$N$20/100)^9)>(1+ConsFactorMax/100),(1+ConsFactorMax/100),(1+'Dati di ingresso'!$N$20/100)^9))","v":100},{"$f":"BiomassFuelUsed*C36/100*BiomassFuelPrice*(1+$H$10)^11","v":400021.72602427931},{"$f":"FossilFuelUsed*FossilFuelPrice*C36/100*(1+$H$11)^11","v":62377.082472477327},18650.614625919781,{"$f":"SpecificElectCons*HeatQuantitySold*ElectricityPrice*(C36/100)*(1+$H$13)^11","v":17231.669033021863},11190.368775551873,6668.6541083910997,0,114473.3234877886,630613.43852742983,{"$f":"HeatQuantitySold*C36/100*HeatSalesPrice*(1+$Q$10)^11","v":660963.65386738779},0,{"$f":"IF('Dati di ingresso'!$AG$79,O35+OngoingSubsidyIncrease+OngoingSubsidyTrend*O35/100,0)","v":17652.614238350408},{"$f":"$P$25*(1+$Q$12)^11","v":0},678616.26810573821,48002.829578308389,68066.021673169045,null,12,-725138.82148363977,{"$f":"IF(SubsidyDisbursementYear=12,SubsidyAmount,0)","v":0}]
[null,2021,{"$f":"$C$27*(IF(((1+'Dati di ingresso'!$N$20/100)^10)>(1+ConsFactorMax/100),(1+ConsFactorMax/100),(1+'Dati di ingresso'!$N$20/100)^10))","v":100},{"$f":"BiomassFuelUsed*C37/100*BiomassFuelPrice*(1+$H$10)^12","v":408022.16054476495},{"$f":"FossilFuelUsed*FossilFuelPrice*C37/100*(1+$H$11)^12","v":65495.936596101186},19023.626918438178,{"$f":"SpecificElectCons*HeatQuantitySold*ElectricityPrice*(C37/100)*(1+$H$13)^12","v":18093.25248467295},11414.176151062911,6845.7522151313096,0,114473.3234877886,643368.22839796008,{"$f":"HeatQuantitySold*C37/100*HeatSalesPrice*(1+$Q$10)^12","v":677487.74521407241},0,{"$f":"IF('Dati di ingresso'!$AG$79,O36+OngoingSubsidyIncrease+OngoingSubsidyTrend*O36/100,0)","v":19182.192665500919},{"$f":"$P$25*(1+$Q$12)^12","v":0},696669.93787957332,53301.709481613245,121367.73115478229,null,13,-650548.13317745132,{"$f":"IF(SubsidyDisbursementYear=13,SubsidyAmount,0)","v":0}]
[null,2022,{"$f":"$C$27*(IF(((1+'Dati di ingresso'!$N$20/100)^11)>(1+ConsFactorMax/100),(1+ConsFactorMax/100),(1+'Dati di ingresso'!$N$20/100)^11))","v":100},{"$f":"BiomassFuelUsed*C38/100*BiomassFuelPrice*(1+$H$10)^13","v":416182.60375566024},{"$f":"FossilFuelUsed*FossilFuelPrice*C38/100*(1+$H$11)^13","v":68770.733425906263},19404.09945680694,{"$f":"SpecificElectCons*HeatQuantitySold*ElectricityPrice*(C38/100)*(1+$H$13)^13","v":18997.915108906604},11642.45967408417,7027.5892271609373,0,114473.3234877886,656498.72413631377,{"$f":"HeatQuantitySold*C38/100*HeatSalesPrice*(1+$Q$10)^13","v":694424.93884442421},0,{"$f":"IF('Dati di ingresso'!$AG$79,O37+OngoingSubsidyIncrease+OngoingSubsidyTrend*O37/100,0)","v":20757.658445465946},{"$f":"$P$25*(1+$Q$12)^13","v":0},715182.59728989017,58683.873153576395,{"$f":"S37+R38","v":180051.60430835868},null,14,-571854.95701442251,{"$f":"IF(SubsidyDisbursementYear=14,SubsidyAmount,0)","v":0}]
[null,2023,{"$f":"$C$27*(IF(((1+'Dati di ingresso'!$N$20/100)^12)>(1+ConsFactorMax/100),(1+ConsFactorMax/100),(1+'Dati di ingresso'!$N$20/100)^12))","v":100},{"$f":"BiomassFuelUsed*C39/100*BiomassFuelPrice*(1+$H$10)^14","v":424506.2558307735},{"$f":"FossilFuelUsed*FossilFuelPrice*C39/100*(1+$H$11)^14","v":72209.270097201559},19792.181445943083,{"$f":"SpecificElectCons*HeatQuantitySold*ElectricityPrice*(C39/100)*(1+$H$13)^14","v":19947.81086435193},11875.308867565853,7214.2929606908474,0,114473.3234877886,670018.44355431525,{"$f":"HeatQuantitySold*C39/100*HeatSalesPrice*(1+$Q$10)^14","v":711785.56231553468},0,{"$f":"IF('Dati di ingresso'!$AG$79,O38+OngoingSubsidyIncrease+OngoingSubsidyTrend*O38/100,0)","v":22380.388198829925},{"$f":"$P$25*(1+$Q$12)^14","v":0},734165.95051436464,64147.506960049388,244199.11126840807,null,15,-488833.65616242716,{"$f":"IF(SubsidyDisbursementYear=15,SubsidyAmount,0)","v":0}]
[null,2024,{"$f":"$C$27*(IF(((1+'Dati di ingresso'!$N$20/100)^13)>(1+ConsFactorMax/100),(1+ConsFactorMax/100),(1+'Dati di ingresso'!$N$20/100)^13))","v":100},{"$f":"BiomassFuelUsed*C40/100*BiomassFuelPrice*(1+$H$10)^15","v":432996.38094738883},{"$f":"FossilFuelUsed*FossilFuelPrice*C40/100*(1+$H$11)^15","v":75819.733602061649},20188.02507486194,{"$f":"SpecificElectCons*HeatQuantitySold*ElectricityPrice*(C40/100)*(1+$H$13)^15","v":20945.20140756953},12112.81504491717,7405.9947076445333,0,114473.3234877886,683941.47427223227,{"$f":"HeatQuantitySold*C40/100*HeatSalesPrice*(1+$Q$10)^15","v":729580.20137342322},0,{"$f":"IF('Dati di ingresso'!$AG$79,O39+OngoingSubsidyIncrease+OngoingSubsidyTrend*O39/100,0)","v":24051.799844794823},{"$f":"$P$25*(1+$Q$12)^15","v":0},753632.00121821801,69690.526945985737,313889.63821439381,null,16,-401246.18376357207,{"$f":"IF(SubsidyDisbursementYear=16,SubsidyAmount,0)","v":0}]
[null,2025,{"$f":"$C$27*(IF(((1+'Dati di ingresso'!$N$20/100)^14)>(1+ConsFactorMax/100),(1+ConsFactorMax/100),(1+'Dati di ingresso'!$N$20/100)^14))","v":100},{"$f":"BiomassFuelUsed*C41/100*BiomassFuelPrice*(1+$H$10)^16","v":441656.30856633669},{"$f":"FossilFuelUsed*FossilFuelPrice*C41/100*(1+$H$11)^16","v":79610.720282164722},20591.78557635918,{"$f":"SpecificElectCons*HeatQuantitySold*ElectricityPrice*(C41/100)*(1+$H$13)^16","v":21992.461477948007},12355.071345815513,7602.8293309601513,0,114473.3234877886,698282.50006737281,{"$f":"HeatQuantitySold*C41/100*HeatSalesPrice*(1+$Q$10)^16","v":747819.70640775864},0,{"$f":"IF('Dati di ingresso'!$AG$79,O40+OngoingSubsidyIncrease+OngoingSubsidyTrend*O40/100,0)","v":25773.353840138669},{"$f":"$P$25*(1+$Q$12)^16","v":0},773593.06024789729,75310.560180524481,389200.19839491829,null,17,-308841.40038277995,{"$f":"IF(SubsidyDisbursementYear=17,SubsidyAmount,0)","v":0}]
[null,2026,{"$f":"$C$27*(IF(((1+'Dati di ingresso'!$N$20/100)^15)>(1+ConsFactorMax/100),(1+ConsFactorMax/100),(1+'Dati di ingresso'!$N$20/100)^15))","v":100},{"$f":"BiomassFuelUsed*C42/100*BiomassFuelPrice*(1+$H$10)^17","v":450489.43473766348},{"$f":"FossilFuelUsed*FossilFuelPrice*C42/100*(1+$H$11)^17","v":83591.256296272972},21003.621287886366,{"$f":"SpecificElectCons*HeatQuantitySold*ElectricityPrice*(C42/100)*(1+$H$13)^17","v":23092.084551845408},12602.172772731823,7804.9353625273952,0,114473.3234877886,713056.8284967161,{"$f":"HeatQuantitySold*C42/100*HeatSalesPrice*(1+$Q$10)^17","v":766515.19906795258},0,{"$f":"IF('Dati di ingresso'!$AG$79,O41+OngoingSubsidyIncrease+OngoingSubsidyTrend*O41/100,0)","v":27546.55445534283},{"$f":"$P$25*(1+$Q$12)^17","v":0},794061.7535232954,81004.925026579294,470205.12342149758,null,18,-211354.35391604426,{"$f":"IF(SubsidyDisbursementYear=18,SubsidyAmount,0)","v":0}]
[null,2027,{"$f":"$C$27*(IF(((1+'Dati di ingresso'!$N$20/100)^16)>(1+ConsFactorMax/100),(1+ConsFactorMax/100),(1+'Dati di ingresso'!$N$20/100)^16))","v":100},{"$f":"BiomassFuelUsed*C43/100*BiomassFuelPrice*(1+$H$10)^18","v":459499.22343241668},{"$f":"FossilFuelUsed*FossilFuelPrice*C43/100*(1+$H$11)^18","v":87770.819111086617},21423.69371364409,{"$f":"SpecificElectCons*HeatQuantitySold*ElectricityPrice*(C43/100)*(1+$H$13)^18","v":24246.688779437678},12854.21622818646,8012.455103832619,0,114473.3234877886,728280.41985639278,{"$f":"HeatQuantitySold*C43/100*HeatSalesPrice*(1+$Q$10)^18","v":785678.07904465136},0,{"$f":"IF('Dati di ingresso'!$AG$79,O42+OngoingSubsidyIncrease+OngoingSubsidyTrend*O42/100,0)","v":29372.951089003116},{"$f":"$P$25*(1+$Q$12)^18","v":0},815051.03013365448,86770.610277261701,556975.73369875923,null,19,-108505.51989363811,{"$f":"IF(SubsidyDisbursementYear=19,SubsidyAmount,0)","v":0}]
[null,2028,{"$f":"$C$27*(IF(((1+'Dati di ingresso'!$N$20/100)^17)>(1+ConsFactorMax/100),(1+ConsFactorMax/100),(1+'Dati di ingresso'!$N$20/100)^17))","v":100},{"$f":"BiomassFuelUsed*C44/100*BiomassFuelPrice*(1+$H$10)^19","v":468689.207901065},{"$f":"FossilFuelUsed*FossilFuelPrice*C44/100*(1+$H$11)^19","v":92159.360066640962},21852.167587916971,{"$f":"SpecificElectCons*HeatQuantitySold*ElectricityPrice*(C44/100)*(1+$H$13)^19","v":25459.023218409562},13111.30055275019,8225.534729387733,0,114473.3234877886,743969.91754395899,{"$f":"HeatQuantitySold*C44/100*HeatSalesPrice*(1+$Q$10)^19","v":805320.03102076764},0,{"$f":"IF('Dati di ingresso'!$AG$79,O43+OngoingSubsidyIncrease+OngoingSubsidyTrend*O43/100,0)","v":31254.13962167321},{"$f":"$P$25*(1+$Q$12)^19","v":0},836574.17064244091,92604.253098481917,649579.98679724114,null,20,3.7834979593753815E-10,{"$f":"IF(SubsidyDisbursementYear=20,SubsidyAmount,0)","v":0}]
[null,2029,{"$f":"$C$27*(IF(((1+'Dati di ingresso'!$N$20/100)^18)>(1+ConsFactorMax/100),(1+ConsFactorMax/100),(1+'Dati di ingresso'!$N$20/100)^18))","v":100},{"$f":"BiomassFuelUsed*C45/100*BiomassFuelPrice*(1+$H$10)^20","v":478062.99205908633},{"$f":"FossilFuelUsed*FossilFuelPrice*C45/100*(1+$H$11)^20","v":96767.328069972995},22289.210939675315,{"$f":"SpecificElectCons*HeatQuantitySold*ElectricityPrice*(C45/100)*(1+$H$13)^20","v":26731.97437933004},13373.526563805193,8444.3243930205044,0,0,645669.35640489042,{"$f":"HeatQuantitySold*C45/100*HeatSalesPrice*(1+$Q$10)^20","v":825453.03179628681},0,{"$f":"IF('Dati di ingresso'!$AG$79,O44+OngoingSubsidyIncrease+OngoingSubsidyTrend*O44/100,0)","v":33191.763810323406},{"$f":"$P$25*(1+$Q$12)^20","v":0},858644.79560661025,212975.43920171983,{"$f":"S44+R45","v":862555.42599896097},null,21,0,{"$f":"IF(SubsidyDisbursementYear=21,SubsidyAmount,0)","v":0}]
[null,2030,{"$f":"$C$27*(IF(((1+'Dati di ingresso'!$N$20/100)^19)>(1+ConsFactorMax/100),(1+ConsFactorMax/100),(1+'Dati di ingresso'!$N$20/100)^19))","v":100},{"$f":"BiomassFuelUsed*C46/100*BiomassFuelPrice*(1+$H$10)^21","v":487624.25190026802},{"$f":"FossilFuelUsed*FossilFuelPrice*C46/100*(1+$H$11)^21","v":101605.69447347165},22734.995158468817,{"$f":"SpecificElectCons*HeatQuantitySold*ElectricityPrice*(C46/100)*(1+$H$13)^21","v":28068.573098296543},13640.997095081297,8668.9783371060366,0,0,662343.49006269232,{"$f":"HeatQuantitySold*C46/100*HeatSalesPrice*(1+$Q$10)^21","v":846089.35759119387},0,{"$f":"IF('Dati di ingresso'!$AG$79,O45+OngoingSubsidyIncrease+OngoingSubsidyTrend*O45/100,0)","v":35187.516724633111},{"$f":"$P$25*(1+$Q$12)^21","v":0},881276.87431582692,218933.3842531346,1081488.8102520956,null,22,0,{"$f":"IF(SubsidyDisbursementYear=22,SubsidyAmount,0)","v":0}]
[null,2031,{"$f":"$C$27*(IF(((1+'Dati di ingresso'!$N$20/100)^20)>(1+ConsFactorMax/100),(1+ConsFactorMax/100),(1+'Dati di ingresso'!$N$20/100)^20))","v":100},{"$f":"BiomassFuelUsed*C47/100*BiomassFuelPrice*(1+$H$10)^22","v":497376.73693827342},{"$f":"FossilFuelUsed*FossilFuelPrice*C47/100*(1+$H$11)^22","v":106685.97919714522},23189.695061638195,{"$f":"SpecificElectCons*HeatQuantitySold*ElectricityPrice*(C47/100)*(1+$H$13)^22","v":29472.001753211367},13913.817036982922,8899.6550048215086,0,0,679537.88499207259,{"$f":"HeatQuantitySold*C47/100*HeatSalesPrice*(1+$Q$10)^22","v":867241.59153097367},0,{"$f":"IF('Dati di ingresso'!$AG$79,O46+OngoingSubsidyIncrease+OngoingSubsidyTrend*O46/100,0)","v":37243.142226372103},{"$f":"$P$25*(1+$Q$12)^22","v":0},904484.73375734582,224946.84876527323,1306435.6590173687,null,23,0,{"$f":"IF(SubsidyDisbursementYear=23,SubsidyAmount,0)","v":0}]
[null,2032,{"$f":"$C$27*(IF(((1+'Dati di ingresso'!$N$20/100)^21)>(1+ConsFactorMax/100),(1+ConsFactorMax/100),(1+'Dati di ingresso'!$N$20/100)^21))","v":100},{"$f":"BiomassFuelUsed*C48/100*BiomassFuelPrice*(1+$H$10)^23","v":507324.27167703881},{"$f":"FossilFuelUsed*FossilFuelPrice*C48/100*(1+$H$11)^23","v":112020.27815700251},23653.488962870957,{"$f":"SpecificElectCons*HeatQuantitySold*ElectricityPrice*(C48/100)*(1+$H$13)^23","v":30945.601840871943},14192.09337772258,9136.5171555085035,0,0,697272.2511710152,{"$f":"HeatQuantitySold*C48/100*HeatSalesPrice*(1+$Q$10)^23","v":888922.631319248},0,{"$f":"IF('Dati di ingresso'!$AG$79,O47+OngoingSubsidyIncrease+OngoingSubsidyTrend*O47/100,0)","v":39360.436493163266},{"$f":"$P$25*(1+$Q$12)^23","v":0},928283.06781241123,231010.81664139603,1537446.4756587646,null,24,0,{"$f":"IF(SubsidyDisbursementYear=24,SubsidyAmount,0)","v":0}]
[null,2033,{"$f":"$C$27*(IF(((1+'Dati di ingresso'!$N$20/100)^22)>(1+ConsFactorMax/100),(1+ConsFactorMax/100),(1+'Dati di ingresso'!$N$20/100)^22))","v":100},{"$f":"BiomassFuelUsed*C49/100*BiomassFuelPrice*(1+$H$10)^24","v":517470.75711057958},{"$f":"FossilFuelUsed*FossilFuelPrice*C49/100*(1+$H$11)^24","v":117621.29206485262},24126.558742128374,{"$f":"SpecificElectCons*HeatQuantitySold*ElectricityPrice*(C49/100)*(1+$H$13)^24","v":32492.881932915534},14475.935245277033,9379.7319832296635,0,0,715567.1570789828,{"$f":"HeatQuantitySold*C49/100*HeatSalesPrice*(1+$Q$10)^24","v":911145.69710222911},0,{"$f":"IF('Dati di ingresso'!$AG$79,O48+OngoingSubsidyIncrease+OngoingSubsidyTrend*O48/100,0)","v":41541.249587958162},{"$f":"$P$25*(1+$Q$12)^24","v":0},952686.94669018732,237119.78961120453,1774566.2652699691,null,25,0,{"$f":"IF(SubsidyDisbursementYear=25,SubsidyAmount,0)","v":0}]
[]
[]
[980,"Grafici delle principali grandezze finanziarie su 25 anni"]
[]
[]
[]
[]
[]
[]
[]
[]
[]
[]
[]
[]
[]
[]
[]
[]
[]
[]
[]
[]
[]
[]
[]
[]
[]
[]
[]
[]
[]
[]
[]
[]
[]
[]
[]
[]
[981]

{"sheet":"Commenti","index":5,"n_rows":8,"n_cols":6,"rows_kept":8,"cut":false,"hidden":false,"merged":[[7,1,7,22],[3,5,3,22]]}
[null,"Calcolo della redditività economica - valutazione"]
[]
[]
[null,"Titolo progetto:",null,null,null,"Musterprojekt Mustermann"]
[]
[null,"Commenti ai risultati della valutazione della redditività (Interpretazione)"]
[]
[500]